Workbook

Sheet Instructions
A63: AAA

Sheet Input Form
C1: Data entry cell color coding:
E2: Input from AgFA | H2: FarmID | I2: Farm1
E3: Input from your own records/projections
E4: Calculations performed by the tool
C5: Check box below if comparative year data will be entered:
B6: Farm Earnings Previous Year: | E6: 1 | F6: 2009 | H6: Range for Sensitivity Analyses
A7: =E7*E8 -> 0 | B7: Farm Earnings Current Year: | E7: 1 | F7: 2010 | H7: Minimum | I7: 10 | J7: %
B8: Farm Earnings Projection Year: | F8: 2011 | H8: Maximum | I8: 40 | J8: %
A10: =F8 -> 2011 | C10: Projection INPUT Form
B11: Non-Cash Expenses
A12: Gain (Loss) on Sale of All Farm Capital Assets | F12: 5908 | G12: (IRS Form 4797)
B16: Non-Farm Income/Family Living Expense
A17: Total Non-Farm Income | F17: 17000
A18: - Cash Family Living Expenditures | F18: 55670
B20: Cash Provided by Operating Activities
A21: Cash Paid for Purchased Resale Livestock | F21: 0
A22: Personal Income Tax Paid | F22: 0
A23: Income Tax Paid | F23: 1123
B25: Cash Provided by Investing Activities
A26: Income from Sales of equipment | F26: 8092
A27: Income from sale of buildings | F27: 0
A28: Income from sale of land | F28: 0
A29: Income from sale of non-current assets | F29: 0
A30: Cash Received from Sale of Assets | F30: =SUM(F26:F29) -> 8092
A31: Cash Received from Sale of Personal Assets | F31: 1252
A32: Amount Paid for Breeding Livestock | F32: 16732
A33: Boot Price Paid for Machinery & Equipment | F33: 34070
A34: Amount Paid for Buildings | F34: 59349
A35: Amount Paid for Land and House | F35: 23028
A36: Amount Paid for Coop Stock, Etc. | F36: 8399
A37: Amount Paid for Personal Assets | F37: 5139
B39: Cropping Data | H39: Hours/acre Labor
A40: Total acres Corn Silage | D40: 35 | H40: 2.5
A41: Total acres corn grain | D41: 50 | H41: 3
A42: Total acres hay forage | D42: 100 | H42: 2
A43: Total acres small grains | D43: 20 | H43: 1.5
B45: Herd Data | F45: Hours/cow and
A46: Total number cows milked | D46: 100 | F46: raised replacement | H46: 35
A48: Predicted Milk Price/Production
A49: Expected average milk price | D49: 12.5 | E49: per CWT | F49: =($D$50/100)*$D$46 -> 22000 | G49: CWT Annual Production
B50: Avg. milk/cow | D50: 22000 | E50: lbs. | F50: =(($D$50/100)*$D$46)*$D$49 -> 275000 | G50: Gross milk income
B52: Manager/Operator Information
A53: Value Operator Management/$ Gross Income | F53: 0.06
A54: Value Operator Labor/hour | F54: 15
B56: Cash Provided by Financing Activities
A57: Proceeds from Added Term Debt | F57: 168962
A58: Repayment of Term Debt | F58: 62481
A59: Net Proceeds from Personal Loans | F59: 806
A60: Proceeds from Gifts | F60: 0
A61: Operating Loans
B62: Beginning loan Balance | E62: 20000
B63: New borrowings | E63: 9000
B64: Principal paid | E64: 20000
B65: Ending loan Balance | E65: 9000
A67: Line of Credit
B68: Beginning loan Balance | E68: 0
B69: New borrowings | E69: 5553
B70: Principal paid | E70: 0
B71: Ending loan Balance | E71: 5553
A73: CCC Loans
B74: Beginning loan Balance | E74: 0
B75: New borrowings | E75: 0
B76: Principal paid | E76: 0
B77: Ending loan Balance | E77: 0

Sheet Balance Sheet
A1: Input from AgFA | W1: ='Input Form'!I7/100 -> 0.1 | X1: =AVERAGE(W1,Y1) -> 0.175 | Y1: =AVERAGE(W1,AA1) -> 0.25 | Z1: =AVERAGE(Y1,AA1) -> 0.325 | AA1: ='Input Form'!I8/100 -> 0.4
A2: Input from your own records/projections
A3: Calculations performed by the tool
A5: Balance Sheet Statement | I5: ↓ | J5: ↓ | O5: Previous Years Values
A6: ="FarmID "&'Input Form'!I2 -> FarmID Farm1 | B6: ='Input Form'!F8 -> 2011 | C6: Projection | I6: ='Input Form'!F7 -> 2010 | J6: =I6 -> 2010 | P6: Range | X6: Sensitivity Analysis | Z6: ='Input Form'!F8 -> 2011 | AA6: Projection Year End
A7: Current Assets | B7: Ending | C7: Change | D7: Cost Basis | I7: Beginning | J7: Ending | K7: Change | L7: Cost Basis | O7: Average | P7: Min | Q7: Max | U7: $ Equity
A8: Cash Accounts | B8: 9000 | C8: =B8-J8 -> -18783.31356 | I8: 30429.52115 | J8: 27783.31356 | K8: =J8-I8 -> -2646.20759 | O8: =AVERAGE(J8,I8) -> 29106.41735 | P8: =MIN(I8:J8) -> 27783.31356 | Q8: =MAX(I8:J8) -> 30429.52115 | W8: With an increase in operating expenses | AC8: With a decrease in operating expenses
A9: Prepaid Expenses & Purchased Inventories | B9: 12000 | C9: -9343.163545 | I9: 15806.16643 | J9: 21343.16355 | K9: =J9-I9 -> 5536.997119 | O9: 18574.66499 | P9: 15806.16643 | Q9: 21343.16355 | W9: =W$1 -> 0.1 | X9: =X$1 -> 0.175 | Y9: =Y$1 -> 0.25 | Z9: =Z$1 -> 0.325 | AA9: =AA$1 -> 0.4 | AC9: =W$1 -> 0.1 | AD9: =X$1 -> 0.175 | AE9: =Y$1 -> 0.25 | AF9: =Z$1 -> 0.325 | AG9: =AA$1 -> 0.4
A10: Raised Feed Inventories | B10: 165000 | C10: 12144.53105 | I10: 147986.3908 | J10: 152855.4689 | K10: =J10-I10 -> 4869.078148 | O10: 150420.9299 | P10: 147986.3908 | Q10: 152855.4689 | W10: =$B$45+'Annual Cash Flow Projection'!N10 -> 1010119.01 | X10: =$B$45+'Annual Cash Flow Projection'!O10 -> 965434.0168 | Y10: =$B$45+'Annual Cash Flow Projection'!P10 -> 920749.0241 | Z10: =$B$45+'Annual Cash Flow Projection'!Q10 -> 876064.0313 | AA10: =$B$45+'Annual Cash Flow Projection'!R10 -> 831379.0385 | AC10: =$B$45-'Annual Cash Flow Projection'!T10 -> 992119.0096 | AD10: =$B$45-'Annual Cash Flow Projection'!U10 -> 947434.0168 | AE10: =$B$45-'Annual Cash Flow Projection'!V10 -> 902749.0241 | AF10: =$B$45-'Annual Cash Flow Projection'!W10 -> 858064.0313 | AG10: =$B$45-'Annual Cash Flow Projection'!X10 -> 813379.0385
A11: Basis in Resale Livestock Purchased | C11: -931.8581081 | I11: 1719.114865 | J11: 931.8581081 | K11: 0 | O11: 1325.486486 | P11: 931.8581081 | Q11: 1719.114865
A12: Accounts Receivable | B12: 2200 | C12: 1581.533784 | I12: 759.2710586 | J12: 618.4662162 | K12: =J12-I12 -> -140.8048423 | O12: 688.8686374 | P12: 618.4662162 | Q12: 759.2710586 | W12: With an Increase in operating revenue | AC12: With a decrease in operating revenue
A13: Market Livestock & Etc. | C13: -375.4029054 | I13: 1190.533311 | J13: 375.4029054 | K13: =J13-I13 -> -815.1304054 | O13: 782.9681081 | P13: 375.4029054 | Q13: 1190.533311 | W13: =$B$45+'Annual Cash Flow Projection'!N13 -> 1139555.122 | X13: =$B$45+'Annual Cash Flow Projection'!O13 -> 1191947.214 | Y13: =$B$45+'Annual Cash Flow Projection'!P13 -> 1244339.305 | Z13: =$B$45+'Annual Cash Flow Projection'!Q13 -> 1296731.397 | AA13: =$B$45+'Annual Cash Flow Projection'!R13 -> 1349123.489 | AC13: =$B$45+'Annual Cash Flow Projection'!T13 -> 999842.8778 | AD13: =$B$45+'Annual Cash Flow Projection'!U13 -> 947450.7862 | AE13: =$B$45+'Annual Cash Flow Projection'!V13 -> 895058.6946 | AF13: =$B$45+'Annual Cash Flow Projection'!W13 -> 842666.603 | AG13: =$B$45+'Annual Cash Flow Projection'!X13 -> 790274.5113
A14: Total Current Assets | B14: =SUM(B8:B13) -> 188200 | C14: -15707.67328 | I14: =SUM(I8:I13) -> 197890.9976 | J14: =SUM(J8:J13) -> 203907.6733 | K14: =J14-I14 -> 6016.675672
A15: Non-Current Assets | C15: Depreciation | D15: Purchase | E15: Beginning | F15: Ending | G15: Depreciation | L15: Beginning | M15: Ending | W15: Rate of Return on Equity (ROROE)
A16: Raised Breeding Livestock | B16: 247000 | C16: (%) | D16: $ | E16: $ | F16: $ | G16: $ | I16: 300079.9489 | J16: 317808.3401 | K16: =J16-I16 -> 17728.39122 | O16: =AVERAGE(J16,I16) -> 308944.1445 | P16: =MIN(I16:J16) -> 300079.9489 | Q16: =MAX(I16:J16) -> 317808.3401 | W16: With an increase in operating expenses | AC16: With a decrease in operating expenses
A17: Purchased Breeding Livestock | B17: 30000 | C17: 0.1 | D17: ='Input Form'!F32 -> 16732 | E17: =M17 -> 47628.08311 | F17: =(($E$17+$D$17-'Farm Earnings'!$B$20)*(1-$C$17)) -> 55997.05378 | G17: =(($E$17+$D$17-'Farm Earnings'!$B$20)*($C$17)) -> 6221.894865 | I17: 67018.39189 | J17: 65304.39414 | K17: -1713.997748 | L17: 52644.99554 | M17: 47628.08311 | O17: 66161.39302 | P17: 65304.39414 | Q17: 67018.39189 | W17: =W$1 -> 0.1 | X17: =X$1 -> 0.175 | Y17: =Y$1 -> 0.25 | Z17: =Z$1 -> 0.325 | AA17: =AA$1 -> 0.4 | AC17: =W$1 -> 0.1 | AD17: =X$1 -> 0.175 | AE17: =Y$1 -> 0.25 | AF17: =Z$1 -> 0.325 | AG17: =AA$1 -> 0.4
A18: Machinery & Equipment | B18: 226999 | C18: 0.07 | D18: ='Input Form'!F33 -> 34070 | E18: =M18 -> 106065.7738 | F18: =(($E$18+'Balance Sheet'!$D$18-'Input Form'!$F$26)*(1-$C$18)) -> 122800.7097 | G18: =(($E$18+'Balance Sheet'!$D$18-'Input Form'!$F$26)*($C$18)) -> 9243.064169 | I18: 277600.8357 | J18: 288430.6877 | K18: 10829.85202 | L18: 101071.0106 | M18: 106065.7738 | O18: 283015.7617 | P18: 277600.8357 | Q18: 288430.6877 | U18: ROROE | W18: =((('Farm Earnings'!$B$77-'Farm Earnings'!$B$81)+(((('Annual Cash Flow Projection'!$C$13+'Annual Cash Flow Projection'!$C$12+'Annual Cash Flow Projection'!$C$10))*(1+'Balance Sheet'!W17))-('Annual Cash Flow Projection'!$C$13+'Annual Cash Flow Projection'!$C$12+'Annual Cash Flow Projection'!$C$10)))/W10) -> -0.006811476088 | X18: =((('Farm Earnings'!$B$77-'Farm Earnings'!$B$81)+(((('Annual Cash Flow Projection'!$C$13+'Annual Cash Flow Projection'!$C$12+'Annual Cash Flow Projection'!$C$10))*(1+'Balance Sheet'!X17))-('Annual Cash Flow Projection'!$C$13+'Annual Cash Flow Projection'!$C$12+'Annual Cash Flow Projection'!$C$10)))/X10) -> -0.0534116194 | Y18: =((('Farm Earnings'!$B$77-'Farm Earnings'!$B$81)+(((('Annual Cash Flow Projection'!$C$13+'Annual Cash Flow Projection'!$C$12+'Annual Cash Flow Projection'!$C$10))*(1+'Balance Sheet'!Y17))-('Annual Cash Flow Projection'!$C$13+'Annual Cash Flow Projection'!$C$12+'Annual Cash Flow Projection'!$C$10)))/Y10) -> -0.1045348782 | Z18: =((('Farm Earnings'!$B$77-'Farm Earnings'!$B$81)+(((('Annual Cash Flow Projection'!$C$13+'Annual Cash Flow Projection'!$C$12+'Annual Cash Flow Projection'!$C$10))*(1+'Balance Sheet'!Z17))-('Annual Cash Flow Projection'!$C$13+'Annual Cash Flow Projection'!$C$12+'Annual Cash Flow Projection'!$C$10)))/Z10) -> -0.1608733777 | AA18: =((('Farm Earnings'!$B$77-'Farm Earnings'!$B$81)+(((('Annual Cash Flow Projection'!$C$13+'Annual Cash Flow Projection'!$C$12+'Annual Cash Flow Projection'!$C$10))*(1+'Balance Sheet'!AA17))-('Annual Cash Flow Projection'!$C$13+'Annual Cash Flow Projection'!$C$12+'Annual Cash Flow Projection'!$C$10)))/AA10) -> -0.223268045 | AC18: =((('Farm Earnings'!$B$77-'Farm Earnings'!$B$81)-(((('Annual Cash Flow Projection'!$C$13+'Annual Cash Flow Projection'!$C$12+'Annual Cash Flow Projection'!$C$10))*(1+'Balance Sheet'!AC17))-('Annual Cash Flow Projection'!$C$13+'Annual Cash Flow Projection'!$C$12+'Annual Cash Flow Projection'!$C$10)))/AC10) -> 0.1131714826 | AD18: =((('Farm Earnings'!$B$77-'Farm Earnings'!$B$81)-(((('Annual Cash Flow Projection'!$C$13+'Annual Cash Flow Projection'!$C$12+'Annual Cash Flow Projection'!$C$10))*(1+'Balance Sheet'!AD17))-('Annual Cash Flow Projection'!$C$13+'Annual Cash Flow Projection'!$C$12+'Annual Cash Flow Projection'!$C$10)))/AD10) -> 0.1656733548 | AE18: =((('Farm Earnings'!$B$77-'Farm Earnings'!$B$81)-(((('Annual Cash Flow Projection'!$C$13+'Annual Cash Flow Projection'!$C$12+'Annual Cash Flow Projection'!$C$10))*(1+'Balance Sheet'!AE17))-('Annual Cash Flow Projection'!$C$13+'Annual Cash Flow Projection'!$C$12+'Annual Cash Flow Projection'!$C$10)))/AE10) -> 0.2233727863 | AF18: =((('Farm Earnings'!$B$77-'Farm Earnings'!$B$81)-(((('Annual Cash Flow Projection'!$C$13+'Annual Cash Flow Projection'!$C$12+'Annual Cash Flow Projection'!$C$10))*(1+'Balance Sheet'!AF17))-('Annual Cash Flow Projection'!$C$13+'Annual Cash Flow Projection'!$C$12+'Annual Cash Flow Projection'!$C$10)))/AF10) -> 0.2870817895 | AG18: =((('Farm Earnings'!$B$77-'Farm Earnings'!$B$81)-(((('Annual Cash Flow Projection'!$C$13+'Annual Cash Flow Projection'!$C$12+'Annual Cash Flow Projection'!$C$10))*(1+'Balance Sheet'!AG17))-('Annual Cash Flow Projection'!$C$13+'Annual Cash Flow Projection'!$C$12+'Annual Cash Flow Projection'!$C$10)))/AG10) -> 0.3577908166
A19: Buildings | B19: 144000 | D19: ='Input Form'!F34 -> 59349 | E19: =M19 -> 261574.3246 | F19: =(($E$19+'Input Form'!$F$34-'Input Form'!$F$27)*(1-$C$19)) -> 320923.3246 | G19: =(($E$19+'Input Form'!$F$34-'Input Form'!$F$27)*($C$19)) -> 0 | I19: 382745.3031 | J19: 393981.1972 | K19: 11235.89405 | L19: 258179.2284 | M19: 261574.3246 | O19: 388363.2501 | P19: 382745.3031 | Q19: 393981.1972
A20: Land & House | B20: 450000 | D20: ='Input Form'!F35 -> 23028 | E20: =M20 -> 249221.0625 | F20: =($E$20+'Input Form'!$F$35-'Input Form'!$F$28)*(1-$C$20) -> 272249.0625 | G20: =($E$20+'Input Form'!$F$35-'Input Form'!$F$28)*($C$20) -> 0 | I20: 512842.917 | J20: 529047.5225 | K20: 16204.60547 | L20: 233300.1078 | M20: 249221.0625 | O20: 520945.2198 | P20: 512842.917 | Q20: 529047.5225 | W20: Increase in operating revenue | AC20: Decrease in operating revenue
A21: Other Non-Current Assets | B21: 23000 | D21: ='Input Form'!F36 -> 8399 | E21: =M21 -> 39080.20955 | F21: =(($E$21+'Input Form'!$F$36-'Input Form'!$F$29)*(1-$C$21)) -> 47479.20955 | G21: =(($E$21+'Input Form'!$F$36-'Input Form'!$F$29)*($C$21)) -> 0 | I21: 42762.03802 | J21: 45980.74457 | K21: 3218.706554 | L21: 35224.66646 | M21: 39080.20955 | O21: 44371.3913 | P21: 42762.03802 | Q21: 45980.74457 | W21: =W$1 -> 0.1 | X21: =X$1 -> 0.175 | Y21: =Y$1 -> 0.25 | Z21: =Z$1 -> 0.325 | AA21: =AA$1 -> 0.4 | AC21: =W$1 -> 0.1 | AD21: =X$1 -> 0.175 | AE21: =Y$1 -> 0.25 | AF21: =Z$1 -> 0.325 | AG21: =AA$1 -> 0.4
A22: Total Non-Current Assets | B22: =SUM(B16:B21) -> 1120999 | E22: =SUM(E17:E21) -> 703569.4536 | F22: =SUM(F17:F21) -> 819449.3601 | G22: =SUM(G17:G21) -> 15464.95903 | I22: =SUM(I16:I21) -> 1583049.435 | J22: =SUM(J16:J21) -> 1640552.886 | K22: 57503.45157 | L22: =SUM(L17:L21) -> 680420.0088 | M22: =SUM(M17:M21) -> 703569.4536 | U22: ROROE | W22: =(('Farm Earnings'!$B$77-'Farm Earnings'!$B$81)-('Annual Cash Flow Projection'!$C$7)+(('Annual Cash Flow Projection'!$C$7)*(1+W21)))/W13 -> 0.1075469792 | X22: =(('Farm Earnings'!$B$77-'Farm Earnings'!$B$81)-('Annual Cash Flow Projection'!$C$7)+(('Annual Cash Flow Projection'!$C$7)*(1+X21)))/X13 -> 0.1467747906 | Y22: =(('Farm Earnings'!$B$77-'Farm Earnings'!$B$81)-('Annual Cash Flow Projection'!$C$7)+(('Annual Cash Flow Projection'!$C$7)*(1+Y21)))/Y13 -> 0.1826992793 | Z22: =(('Farm Earnings'!$B$77-'Farm Earnings'!$B$81)-('Annual Cash Flow Projection'!$C$7)+(('Annual Cash Flow Projection'!$C$7)*(1+Z21)))/Z13 -> 0.2157208398 | AA22: =(('Farm Earnings'!$B$77-'Farm Earnings'!$B$81)-('Annual Cash Flow Projection'!$C$7)+(('Annual Cash Flow Projection'!$C$7)*(1+AA21)))/AA13 -> 0.2461776704 | AC22: =(('Farm Earnings'!$B$77-'Farm Earnings'!$B$81)-('Annual Cash Flow Projection'!$C$7)+(('Annual Cash Flow Projection'!$C$7)*(1-'Balance Sheet'!AC21)))/AC13 -> -0.01715922936 | AD22: =(('Farm Earnings'!$B$77-'Farm Earnings'!$B$81)-('Annual Cash Flow Projection'!$C$7)+(('Annual Cash Flow Projection'!$C$7)*(1-'Balance Sheet'!AD21)))/AD13 -> -0.07340605539 | AE22: =(('Farm Earnings'!$B$77-'Farm Earnings'!$B$81)-('Annual Cash Flow Projection'!$C$7)+(('Annual Cash Flow Projection'!$C$7)*(1-'Balance Sheet'!AE21)))/AE13 -> -0.1362376761 | AF22: =(('Farm Earnings'!$B$77-'Farm Earnings'!$B$81)-('Annual Cash Flow Projection'!$C$7)+(('Annual Cash Flow Projection'!$C$7)*(1-'Balance Sheet'!AF21)))/AF13 -> -0.2068823038 | AG22: =(('Farm Earnings'!$B$77-'Farm Earnings'!$B$81)-('Annual Cash Flow Projection'!$C$7)+(('Annual Cash Flow Projection'!$C$7)*(1-'Balance Sheet'!AG21)))/AG13 -> -0.2868938534
A23: Total Farm Assets | B23: =B22+B14 -> 1309199 | I23: =I22+I14 -> 1780940.432 | J23: =J22+J14 -> 1844460.559 | K23: 63520.12724
A24: Current Liabilities | C24: Change | U24: Current Ratio (CR)
A25: Accounts Payable | B25: 4500 | C25: =B25-J25 -> -4293.196959 | I25: 16846.97622 | J25: 8793.196959 | K25: =J25-I25 -> -8053.779264 | O25: =AVERAGE(J25,I25) -> 12820.08659 | P25: =MIN(I25:J25) -> 8793.196959 | Q25: =MAX(I25:J25) -> 16846.97622 | W25: With an increase in operating expenses | AC25: With a decrease in operating expenses
A26: Current Portion of Non-Current Liabilities | B26: 14000 | C26: =B26-J26 -> -4930.179325 | I26: 25666.69682 | J26: 18930.17932 | K26: =J26-I26 -> -6736.5175 | O26: =AVERAGE(J26,I26) -> 22298.43807 | P26: =MIN(I26:J26) -> 18930.17932 | Q26: =MAX(I26:J26) -> 25666.69682 | W26: =W$1 -> 0.1 | X26: =X$1 -> 0.175 | Y26: =Y$1 -> 0.25 | Z26: =Z$1 -> 0.325 | AA26: =AA$1 -> 0.4 | AC26: =W$1 -> 0.1 | AD26: =X$1 -> 0.175 | AE26: =Y$1 -> 0.25 | AF26: =Z$1 -> 0.325 | AG26: =AA$1 -> 0.4
A27: Other Current Liabilities | B27: 12000 | C27: =B27-J27 -> -13608.02831 | J27: 25608.02831 | K27: =J27-I27 -> 25608.02831 | O27: =AVERAGE(J27,I27) -> 25608.02831 | P27: =MIN(I27:J27) -> 25608.02831 | Q27: =MAX(I27:J27) -> 25608.02831 | U27: CR | W27: =(($B$14)+(((('Annual Cash Flow Projection'!N10))*(1+W26))-('Annual Cash Flow Projection'!N10)))/($B$28+'Input Form'!$E$65+'Input Form'!$E$71+'Input Form'!$E$77) -> 4.065034536 | X27: =(($B$14)+(((('Annual Cash Flow Projection'!O10))*(1+X26))-('Annual Cash Flow Projection'!O10)))/($B$28+'Input Form'!$E$65+'Input Form'!$E$71+'Input Form'!$E$77) -> 3.807263178 | Y27: =(($B$14)+(((('Annual Cash Flow Projection'!P10))*(1+Y26))-('Annual Cash Flow Projection'!P10)))/($B$28+'Input Form'!$E$65+'Input Form'!$E$71+'Input Form'!$E$77) -> 3.400717067 | Z27: =(($B$14)+(((('Annual Cash Flow Projection'!Q10))*(1+Z26))-('Annual Cash Flow Projection'!Q10)))/($B$28+'Input Form'!$E$65+'Input Form'!$E$71+'Input Form'!$E$77) -> 2.845396204 | AA27: =(($B$14)+(((('Annual Cash Flow Projection'!R10))*(1+AA26))-('Annual Cash Flow Projection'!R10)))/($B$28+'Input Form'!$E$65+'Input Form'!$E$71+'Input Form'!$E$77) -> 2.141300588 | AC27: =(($B$14)+(((('Annual Cash Flow Projection'!T10))*(1+AC26))-('Annual Cash Flow Projection'!T10)))/($B$28+'Input Form'!$E$65+'Input Form'!$E$71+'Input Form'!$E$77) -> 4.329522985 | AD27: =(($B$14)+(((('Annual Cash Flow Projection'!U10))*(1+AD26))-('Annual Cash Flow Projection'!U10)))/($B$28+'Input Form'!$E$65+'Input Form'!$E$71+'Input Form'!$E$77) -> 4.617259052 | AE27: =(($B$14)+(((('Annual Cash Flow Projection'!V10))*(1+AE26))-('Annual Cash Flow Projection'!V10)))/($B$28+'Input Form'!$E$65+'Input Form'!$E$71+'Input Form'!$E$77) -> 5.053769871 | AF27: =(($B$14)+(((('Annual Cash Flow Projection'!W10))*(1+AF26))-('Annual Cash Flow Projection'!W10)))/($B$28+'Input Form'!$E$65+'Input Form'!$E$71+'Input Form'!$E$77) -> 5.639055442 | AG27: =(($B$14)+(((('Annual Cash Flow Projection'!X10))*(1+AG26))-('Annual Cash Flow Projection'!X10)))/($B$28+'Input Form'!$E$65+'Input Form'!$E$71+'Input Form'!$E$77) -> 6.373115766
A28: Total Current Liabilities | B28: =SUM(B25:B27) -> 30500 | C28: =SUM(C25:C27) -> -22831.4046 | I28: =SUM(I25:I27) -> 42513.67305 | J28: =SUM(J25:J27) -> 53331.4046 | K28: =J28-I28 -> 10817.73155
A29: Non-Current Liabilities | W29: Increase in operating revenue | AC29: Decrease in operating revenue
A30: Intermediate Liabilities | B30: 90000 | C30: =B30-J30 -> -137397.7702 | I30: 218095.8522 | J30: 227397.7702 | K30: =J30-I30 -> 9301.917941 | O30: =AVERAGE(J30,I30) -> 222746.8112 | P30: =MIN(I30:J30) -> 218095.8522 | Q30: =MAX(I30:J30) -> 227397.7702 | U30: CR | W30: =W$1 -> 0.1 | X30: =X$1 -> 0.175 | Y30: =Y$1 -> 0.25 | Z30: =Z$1 -> 0.325 | AA30: =AA$1 -> 0.4 | AC30: =W$1 -> 0.1 | AD30: =X$1 -> 0.175 | AE30: =Y$1 -> 0.25 | AF30: =Z$1 -> 0.325 | AG30: =AA$1 -> 0.4
A31: Long-Term Liabilities | B31: 125000 | C31: =B31-J31 -> -359700.9006 | I31: 459722.6621 | J31: 484700.9006 | K31: =J31-I31 -> 24978.23849 | O31: =AVERAGE(J31,I31) -> 472211.7814 | P31: =MIN(I31:J31) -> 459722.6621 | Q31: =MAX(I31:J31) -> 484700.9006 | W31: =(($B$14+(-$B$8+'Annual Cash Flow Projection'!N13))/($B$28+'Input Form'!$E$65+'Input Form'!$E$71+'Input Form'!$E$77)) -> 5.727834377 | X31: =(($B$14+(-$B$8+'Annual Cash Flow Projection'!O13))/($B$28+'Input Form'!$E$65+'Input Form'!$E$71+'Input Form'!$E$77)) -> 6.890733443 | Y31: =(($B$14+(-$B$8+'Annual Cash Flow Projection'!P13))/($B$28+'Input Form'!$E$65+'Input Form'!$E$71+'Input Form'!$E$77)) -> 8.053632509 | Z31: =(($B$14+(-$B$8+'Annual Cash Flow Projection'!Q13))/($B$28+'Input Form'!$E$65+'Input Form'!$E$71+'Input Form'!$E$77)) -> 9.216531575 | AA31: =(($B$14+(-$B$8+'Annual Cash Flow Projection'!R13))/($B$28+'Input Form'!$E$65+'Input Form'!$E$71+'Input Form'!$E$77)) -> 10.37943064 | AC31: =(($B$14+(-$B$8+'Annual Cash Flow Projection'!T13))/($B$28+'Input Form'!$E$65+'Input Form'!$E$71+'Input Form'!$E$77)) -> 2.6267702 | AD31: =(($B$14+(-$B$8+'Annual Cash Flow Projection'!U13))/($B$28+'Input Form'!$E$65+'Input Form'!$E$71+'Input Form'!$E$77)) -> 1.463871134 | AE31: =(($B$14+(-$B$8+'Annual Cash Flow Projection'!V13))/($B$28+'Input Form'!$E$65+'Input Form'!$E$71+'Input Form'!$E$77)) -> 0.3009720682 | AF31: =(($B$14+(-$B$8+'Annual Cash Flow Projection'!W13))/($B$28+'Input Form'!$E$65+'Input Form'!$E$71+'Input Form'!$E$77)) -> -0.8619269979 | AG31: =(($B$14+(-$B$8+'Annual Cash Flow Projection'!X13))/($B$28+'Input Form'!$E$65+'Input Form'!$E$71+'Input Form'!$E$77)) -> -2.024826064
A32: Contingent Liabilities | B32: 162000 | C32: =B32-J32 -> -48677.13212 | I32: 202010.2107 | J32: 210677.1321 | K32: =J32-I32 -> 8666.921404 | O32: =AVERAGE(J32,I32) -> 206343.6714 | P32: =MIN(I32:J32) -> 202010.2107 | Q32: =MAX(I32:J32) -> 210677.1321
A33: Total Non-Current Liabilities | B33: =SUM(B30:B32) -> 377000 | C33: =SUM(C30:C32) -> -545775.8029 | I33: =SUM(I30:I32) -> 879828.7251 | J33: =SUM(J30:J32) -> 922775.8029 | K33: =J33-I33 -> 42947.07783 | U33: Working Capital (WC)
A34: Total Farm Liabilities | B34: =B33+B28 -> 407500 | C34: =C33+C28 -> -568607.2075 | I34: =I33+I28 -> 922342.3981 | J34: =J33+J28 -> 976107.2075 | K34: =J34-I34 -> 53764.80938 | W34: With an increase in operating expenses | AC34: With a decrease in operating expenses
W35: =W$1 -> 0.1 | X35: =X$1 -> 0.175 | Y35: =Y$1 -> 0.25 | Z35: =Z$1 -> 0.325 | AA35: =AA$1 -> 0.4 | AC35: =W$1 -> 0.1 | AD35: =X$1 -> 0.175 | AE35: =Y$1 -> 0.25 | AF35: =Z$1 -> 0.325 | AG35: =AA$1 -> 0.4
A36: Non-Farm Assets | B36: 167000 | C36: =B36-J36 -> -230073.9725 | I36: 384430.1098 | J36: 397073.9725 | K36: =J36-I36 -> 12643.86271 | O36: =AVERAGE(J36,I36) -> 390752.0411 | P36: =MIN(I36:J36) -> 384430.1098 | Q36: =MAX(I36:J36) -> 397073.9725 | U36: WC | W36: =($B$14+('Annual Cash Flow Projection'!N10-'Annual Cash Flow Projection'!$C$36)-$B$28) -> 98120.00962 | X36: =($B$14+('Annual Cash Flow Projection'!O10-'Annual Cash Flow Projection'!$C$36)-$B$28) -> 53435.01684 | Y36: =($B$14+('Annual Cash Flow Projection'!P10-'Annual Cash Flow Projection'!$C$36)-$B$28) -> 8750.02406 | Z36: =($B$14+('Annual Cash Flow Projection'!Q10-'Annual Cash Flow Projection'!$C$36)-$B$28) -> -35934.96872 | AA36: =($B$14+('Annual Cash Flow Projection'!R10-'Annual Cash Flow Projection'!$C$36)-$B$28) -> -80619.9615 | AC36: =($B$14+('Annual Cash Flow Projection'!T10-'Annual Cash Flow Projection'!$C$36)-$B$28) -> 217279.9904 | AD36: =($B$14+('Annual Cash Flow Projection'!U10-'Annual Cash Flow Projection'!$C$36)-$B$28) -> 261964.9832 | AE36: =($B$14+('Annual Cash Flow Projection'!V10-'Annual Cash Flow Projection'!$C$36)-$B$28) -> 306649.9759 | AF36: =($B$14+('Annual Cash Flow Projection'!W10-'Annual Cash Flow Projection'!$C$36)-$B$28) -> 351334.9687 | AG36: =($B$14+('Annual Cash Flow Projection'!X10-'Annual Cash Flow Projection'!$C$36)-$B$28) -> 396019.9615
A37: Non-Farm Liabilities | B37: 8000 | C37: =B37-J37 -> -2251.134932 | I37: 10298.19203 | J37: 10251.13493 | K37: =J37-I37 -> -47.05709459 | O37: =AVERAGE(J37,I37) -> 10274.66348 | P37: =MIN(I37:J37) -> 10251.13493 | Q37: =MAX(I37:J37) -> 10298.19203
W38: Increase in operating revenue | AC38: Decrease in operating revenue
A39: Statement of Equities (Net Worth) | C39: Change | W39: =W$1 -> 0.1 | X39: =X$1 -> 0.175 | Y39: =Y$1 -> 0.25 | Z39: =Z$1 -> 0.325 | AA39: =AA$1 -> 0.4 | AC39: =W$1 -> 0.1 | AD39: =X$1 -> 0.175 | AE39: =Y$1 -> 0.25 | AF39: =Z$1 -> 0.325 | AG39: =AA$1 -> 0.4
A40: Contributed Capital | B40: 505 | C40: =B40-J40 -> -31.5991 | I40: 536.5991 | J40: 536.5991 | K40: =J40-I40 -> 0 | O40: =AVERAGE(J40,I40) -> 536.5991 | P40: =MIN(I40:J40) -> 536.5991 | Q40: =MAX(I40:J40) -> 536.5991 | U40: WC | W40: =(($B$14+('Annual Cash Flow Projection'!N13-'Annual Cash Flow Projection'!$C$36)-$B$28)) -> 227556.1222 | X40: =(($B$14+('Annual Cash Flow Projection'!O13-'Annual Cash Flow Projection'!$C$36)-$B$28)) -> 279948.2138 | Y40: =(($B$14+('Annual Cash Flow Projection'!P13-'Annual Cash Flow Projection'!$C$36)-$B$28)) -> 332340.3054 | Z40: =(($B$14+('Annual Cash Flow Projection'!Q13-'Annual Cash Flow Projection'!$C$36)-$B$28)) -> 384732.397 | AA40: =(($B$14+('Annual Cash Flow Projection'!R13-'Annual Cash Flow Projection'!$C$36)-$B$28)) -> 437124.4887 | AC40: =(($B$14+('Annual Cash Flow Projection'!T13-'Annual Cash Flow Projection'!$C$36)-$B$28)) -> 87843.87784 | AD40: =(($B$14+('Annual Cash Flow Projection'!U13-'Annual Cash Flow Projection'!$C$36)-$B$28)) -> 35451.78621 | AE40: =(($B$14+('Annual Cash Flow Projection'!V13-'Annual Cash Flow Projection'!$C$36)-$B$28)) -> -16940.30541 | AF40: =(($B$14+('Annual Cash Flow Projection'!W13-'Annual Cash Flow Projection'!$C$36)-$B$28)) -> -69332.39704 | AG40: =(($B$14+('Annual Cash Flow Projection'!X13-'Annual Cash Flow Projection'!$C$36)-$B$28)) -> -121724.4887
A41: Retained Earnings | B41: =B14+B16+F22+B32-B34-B40 -> 1008644.36 | C41: 549325.5676 | I41: 447166.1974 | J41: 459318.7925 | K41: 12152.59511 | O41: =AVERAGE(J41,I41) -> 453242.4949 | P41: =MIN(I41:J41) -> 447166.1974 | Q41: =MAX(I41:J41) -> 459318.7925
A42: Valuation Adjustment | B42: =B23-B34-B40-B41 -> -107450.3601 | C42: -432832.2738 | D42: Equity | I42: 400539.2662 | J42: 325381.9137 | K42: -75157.35247 | O42: =AVERAGE(J42,I42) -> 362960.59 | P42: =MIN(I42:J42) -> 325381.9137 | Q42: =MAX(I42:J42) -> 400539.2662 | U42: Working Capital:Gross Revenue
A43: Total Farm Equities | B43: =SUM(B40:B42) -> 901699 | C43: 116461.6947 | D43: Accuracy | E43: =B23-B34 -> 901699 | I43: =SUM(I40:I42) -> 848242.0627 | J43: =SUM(J40:J42) -> 785237.3053 | K43: -63004.75736 | W43: With an increase in operating expenses | AC43: With a decrease in operating expenses
A44: Non-Farm Equities | B44: =B36-B37 -> 159000 | C44: -227822.8376 | D44: Check | I44: 374131.9177 | J44: 386822.8376 | K44: 12690.91981 | O44: =AVERAGE(J44,I44) -> 380477.3776 | P44: =MIN(I44:J44) -> 374131.9177 | Q44: =MAX(I44:J44) -> 386822.8376 | U44: WC/GR | W44: =W$1 -> 0.1 | X44: =X$1 -> 0.175 | Y44: =Y$1 -> 0.25 | Z44: =Z$1 -> 0.325 | AA44: =AA$1 -> 0.4 | AC44: =W$1 -> 0.1 | AD44: =X$1 -> 0.175 | AE44: =Y$1 -> 0.25 | AF44: =Z$1 -> 0.325 | AG44: =AA$1 -> 0.4
A45: Total Equities | B45: =B44+B43 -> 1060699 | C45: -111361.1429 | I45: =I44+I43 -> 1222373.98 | J45: =J44+J43 -> 1172060.143 | K45: -50313.83755 | W45: =W36/('Farm Earnings'!$B$29+'Balance Sheet'!$B$12) -> 0.1375441455 | X45: =X36/('Farm Earnings'!$B$29+'Balance Sheet'!$B$12) -> 0.07490494303 | Y45: =Y36/('Farm Earnings'!$B$29+'Balance Sheet'!$B$12) -> 0.01226574057 | Z45: =Z36/('Farm Earnings'!$B$29+'Balance Sheet'!$B$12) -> -0.0503734619 | AA45: =AA36/('Farm Earnings'!$B$29+'Balance Sheet'!$B$12) -> -0.1130126644 | AC45: =AC36/('Farm Earnings'!$B$29+$B$12) -> 0.3045820187 | AD45: =AD36/('Farm Earnings'!$B$29+$B$12) -> 0.3672212212 | AE45: =AE36/('Farm Earnings'!$B$29+$B$12) -> 0.4298604237 | AF45: =AF36/('Farm Earnings'!$B$29+$B$12) -> 0.4924996261 | AG45: =AG36/('Farm Earnings'!$B$29+$B$12) -> 0.5551388286
A46: Rate of Return on Equity (RORE) | B46: =('Farm Earnings'!$B$77-'Farm Earnings'!$B$81)/B45 -> 0.04968383009 | C46: 0.003836896141 | I46: =('Farm Earnings'!D77-'Farm Earnings'!$D$81)/I45 -> 0.04805024068 | J46: =('Farm Earnings'!E77-'Farm Earnings'!$E$81)/J45 -> 0.04584693395 | K46: -0.002203306726
A47: Current Ratio (CR) | B47: =$B$14/$B$28 -> 6.170491803 | C47: =$B$47-$J$47 -> 2.34708466 | I47: =I14/I28 -> 4.654761243 | J47: =J14/J28 -> 3.823407143 | K47: -0.8313541001 | W47: Increase in operating revenue | AC47: Decrease in operating revenue
A48: Working Capital (WK) | B48: =$B$14-$B$28 -> 157700 | C48: =B48-J48 -> 7123.731315 | I48: =I14-I28 -> 155377.3246 | J48: =J14-J28 -> 150576.2687 | K48: -4801.055875 | W48: =W$1 -> 0.1 | X48: =X$1 -> 0.175 | Y48: =Y$1 -> 0.25 | Z48: =Z$1 -> 0.325 | AA48: =AA$1 -> 0.4 | AC48: =W$1 -> 0.1 | AD48: =X$1 -> 0.175 | AE48: =Y$1 -> 0.25 | AF48: =Z$1 -> 0.325 | AG48: =AA$1 -> 0.4
A49: Working Capital: Gross Revenue | B49: =B48/('Farm Earnings'!B29+'Balance Sheet'!B12) -> 0.2210630821 | C49: =B49-J49 -> 0.02867954021 | I49: =I48/('Farm Earnings'!D29+'Balance Sheet'!I12) -> 0.198481897 | J49: =J48/('Farm Earnings'!E29+'Balance Sheet'!J12) -> 0.1923835419 | K49: -0.006098355062 | U49: WC/GR | W49: =W40/('Farm Earnings'!$B$29+$B$12) -> 0.3189870496 | X49: =X40/('Farm Earnings'!$B$29+$B$12) -> 0.3924300252 | Y49: =Y40/('Farm Earnings'!$B$29+$B$12) -> 0.4658730008 | Z49: =Z40/('Farm Earnings'!$B$29+$B$12) -> 0.5393159764 | AA49: =AA40/('Farm Earnings'!$B$29+$B$12) -> 0.612758952 | AC49: =AC40/('Farm Earnings'!$B$29+$B$12) -> 0.1231391146 | AD49: =AD40/('Farm Earnings'!$B$29+$B$12) -> 0.04969613904 | AE49: =AE40/('Farm Earnings'!$B$29+$B$12) -> -0.02374683657 | AF49: =AF40/('Farm Earnings'!$B$29+$B$12) -> -0.09718981217 | AG49: =AG40/('Farm Earnings'!$B$29+$B$12) -> -0.1706327878

Sheet Farm Earnings
A1: Input from AgFA
A2: Input from your own records/projections
A3: Calculations performed by the tool
A5: Farm Earnings Statement | G5: Previous Years Values
A6: FarmID | B6: ='Input Form'!I2 -> Farm1 | D6: ↓ | E6: ↓
B7: Projection | H7: Range
A8: Cash Income - Basis Adjustments | B8: ='Input Form'!F8 -> 2011 | D8: ='Input Form'!F6 -> 2009 | E8: ='Input Form'!F7 -> 2010 | G8: Average | H8: Min | I8: Max
A9: Sales of Livestock and Other Items Bought for Resale | B9: 364.5296703 | D9: 565.3047404 | E9: 565.3047404 | G9: =AVERAGE(D9:E9) -> 565.3047404 | H9: =MIN(E9,D9) -> 565.3047404 | I9: =MAX(E9,D9) -> 565.3047404
A10: Basis in Resale Livestock Sold | B10: 0 | D10: -1738.616253 | E10: -1738.616253 | G10: -1738.616253 | H10: -1738.616253 | I10: =MAX(E10,D10) -> -1738.616253
A11: Animal Product Sales | B11: 548935.2527 | D11: 630562.5632 | E11: 630562.5632 | G11: 630562.5632 | H11: 630562.5632 | I11: 630562.5632
A12: Raised Non-Breeding Livestock Sales | B12: 10213.21004 | D12: 13462.41054 | E12: 13462.41054 | G12: 13462.41054 | H12: 13462.41054 | I12: 13462.41054
A13: Crop Sales | B13: 40304.37582 | D13: 51071.84228 | E13: 51071.84228 | G13: 51071.84228 | H13: 51071.84228 | I13: 51071.84228
A14: Distributions Received from Cooperatives | B14: 6145.757165 | D14: 6227.013995 | E14: 6227.013995 | G14: 6227.013995 | H14: 6227.013995 | I14: 6227.013995
A15: Agricultural Program Payments | B15: 12356.78007 | D15: 7242.587065 | E15: 7242.587065 | G15: 7242.587065 | H15: 7242.587065 | I15: 7242.587065
A16: MILC Program Payments | B16: 28473.00703 | D16: 1227.190384 | E16: 1227.190384 | G16: 1227.190384 | H16: 1227.190384 | I16: 1227.190384
A17: Crop Insurance Proceeds and Certain Disaster Payments | B17: 5477.391209 | D17: 4051.75395 | E17: 4051.75395 | G17: 4051.75395 | H17: 4051.75395 | I17: 4051.75395
A18: Custom Hire (Machine Work) Income | B18: 6587.215385 | D18: 7293.441174 | E18: 7293.441174 | G18: 7293.441174 | H18: 7293.441174 | I18: 7293.441174
A19: Other Income, Incl. Tax Credits, Refunds | B19: 12735.31868 | D19: 8628.930542 | E19: 8628.930542 | G19: 8628.930542 | H19: 8628.930542 | I19: 8628.930542
A20: Sale of Purchased Breeding Livestock | B20: 2141.134462 | D20: 3631.615982 | E20: 3631.615982 | G20: 3631.615982 | H20: 3631.615982 | I20: 3631.615982
A21: Basis in Breeding Livestock Sold | B21: -3522.337011 | D21: -1813.888578 | E21: -1813.888578 | G21: -1813.888578 | H21: -1813.888578 | I21: -1813.888578
A22: Sale of Raised Breeding Livestock | B22: 24827.24936 | D22: 29951.81609 | E22: 29951.81609 | G22: 29951.81609 | H22: 29951.81609 | I22: 29951.81609
A23: Total Cash Income - Basis Adjustments | B23: =SUM(B9:B22) -> 695038.8846 | D23: =SUM(D9:D22) -> 760363.9651 | E23: =SUM(E9:E22) -> 760363.9651
A24: Non-Cash Income
A25: Change in Raised Crop Inventories | B25: -7201.999366 | D25: 4566.525277 | E25: 4566.525277 | G25: =AVERAGE(D25:E25) -> 4566.525277 | H25: =MIN(E25,D25) -> 4566.525277 | I25: =MAX(E25,D25) -> 4566.525277
A26: Change in Remaining Current Assets | B26: -687.6061099 | D26: -967.1224605 | E26: -967.1224605 | G26: =AVERAGE(D26:E26) -> -967.1224605 | H26: =MIN(E26,D26) -> -967.1224605 | I26: =MAX(E26,D26) -> -967.1224605
A27: Change in Raised Breeding Livestock | B27: 24021.75725 | D27: 18106.05688 | E27: 18106.05688 | G27: =AVERAGE(D27:E27) -> 18106.05688 | H27: =MIN(E27,D27) -> 18106.05688 | I27: =MAX(E27,D27) -> 18106.05688
A28: Total Non-Cash Income | B28: =SUM(B25:B27) -> 16132.15178 | D28: =SUM(D25:D27) -> 21705.4597 | E28: =SUM(E25:E27) -> 21705.4597
A29: Total Income | B29: =B28+B23 -> 711171.0364 | D29: =D28+D23 -> 782069.4248 | E29: =E28+E23 -> 782069.4248
A32: Cash Expense
A33: Cost of Items for Resale | B33: 128.5538462 | D33: 36.72009029 | E33: 36.72009029
A34: Breeding Fees | B34: 9864.037363 | D34: 10002.75436 | E34: 10002.75436
A35: Car and Truck Expenses | B35: 2639.07011 | D35: 2886.777833 | E35: 2886.777833
A36: Crop Chemicals | B36: 8521.215385 | D36: 8619.299661 | E36: 8619.299661
A37: Conservation Expenses | B37: 4.989010989 | D37: 35.82223476 | E37: 35.82223476
A38: Custom Heifer Raising Expenses | B38: 6722.043956 | D38: 1599.294808 | E38: 1599.294808
A39: Custom Hire (Machine Work) | B39: 24393.28352 | D39: 26922.39964 | E39: 26922.39964
A40: Employee Benefits - Dependents | B40: 3649.674725 | D40: 3277.277652 | E40: 3277.277652
A41: Employee Benefits - Non-Dependents | B41: 14087.66813 | D41: 12884.86684 | E41: 12884.86684
A42: Feed Purchase | B42: 187231.8286 | D42: 177240.5518 | E42: 177240.5518
A43: Fertilizer and Lime | B43: 18171.15604 | D43: 22844.90628 | E43: 22844.90628
A44: Freight and Trucking | B44: 8504.943604 | D44: 8926.067675 | E44: 8926.067675
A45: Gasoline, Fuel, and Oil | B45: 21332.85714 | D45: 25667.78284 | E45: 25667.78284
A46: Farm Insurance | B46: 9114.997802 | D46: 9191.853679 | E46: 9191.853679
A47: Mortgage Interest | B47: 16297.41538 | D47: 17036.51072 | E47: 17036.51072
A48: Other Interest | B48: 24545.52985 | D48: 22362.84772 | E48: 22362.84772
A49: Labor Hired - Dependents | B49: 6313.793407 | D49: 5465.986456 | E49: 5465.986456
A50: Labor Hired - Non-Dependents | B50: 68944.38022 | D50: 66095.25334 | E50: 66095.25334
A51: Pension and Profit-Sharing Plans - Non-Dependents | B51: 39.10769231 | D51: 39.8261851 | E51: 39.8261851
A52: Pension and Profit-Sharing Plans - Dependents | B52: 0 | D52: 0 | E52: 0
A53: Rent/Lease Equipment | B53: 2934.028571 | D53: 2876.636095 | E53: 2876.636095
A54: Rent/Lease Other | B54: 25187.90989 | D54: 27999.67212 | E54: 27999.67212
A55: Repairs and Maintenance | B55: 2339.030769 | D55: 2032.691106 | E55: 2032.691106
A56: Building and Fence Repairs | B56: 7591.184615 | D56: 7848.972506 | E56: 7848.972506
A57: Machinery Repairs | B57: 22088.49011 | D57: 25105.68018 | E57: 25105.68018
A58: Seeds and Plants Purchased | B58: 15642.92967 | D58: 23430.20142 | E58: 23430.20142
A59: Storage and Warehousing | B59: 37.87252747 | D59: 122.5341761 | E59: 122.5341761
A60: Supplies Purchased | B60: 18482.51648 | D60: 20344.79052 | E60: 20344.79052
A61: Taxes - Other | B61: 5461.714286 | D61: 6866.329029 | E61: 6866.329029
A62: Taxes - Payroll | B62: 156.4857143 | D62: 90.62528217 | E62: 90.62528217
A63: Utilities | B63: 17669.87473 | D63: 18036.14512 | E63: 18036.14512
A64: Veterinary Fees and Medicine | B64: 22886.72527 | D64: 23013.54025 | E64: 23013.54025
A65: Other Farm Expenses | B65: 6455.492242 | D65: 7122.469684 | E65: 7122.469684
A66: Marketing & Hedging | B66: 7214.56044 | D66: 6989.669481 | E66: 6989.669481
A67: Other Crop Expenses | B67: 7188.338462 | D67: 6989.710045 | E67: 6989.710045
A68: Other Livestock Expenses | B68: 44799.14945 | D68: 39952.11081 | E68: 39952.11081
A69: Total Cash Expense | B69: =SUM(B33:B68) -> 636642.849 | D69: =SUM(D33:D68) -> 639958.5777 | E69: =SUM(E33:E68) -> 639958.5777
A70: Non-Cash Expenses
A71: - Change in Prepaid Expenses | B71: ='Balance Sheet'!C9 -> -9343.163545 | D71: -5549.495984 | E71: -5549.495984
A72: Change in Accounts Payable | B72: ='Balance Sheet'!C25 -> -4293.196959 | D72: -1566.302212 | E72: -1566.302212
A73: Machinery, Equipment and Building Depreciation | B73: ='Balance Sheet'!G18+'Balance Sheet'!G19 -> 9243.064169 | D73: 63097.54696 | E73: 63097.54696 | G73: =AVERAGE(D73:E73) -> 63097.54696 | H73: =MIN(E73,D73) -> 63097.54696 | I73: =MAX(E73,D73) -> 63097.54696
A74: Livestock Depreciation | B74: ='Balance Sheet'!G17 -> 6221.894865 | D74: 12393.73445 | E74: 12393.73445 | G74: =AVERAGE(D74:E74) -> 12393.73445 | H74: =MIN(E74,D74) -> 12393.73445 | I74: =MAX(E74,D74) -> 12393.73445
A75: Total Non-Cash Expenses | B75: =SUM(B71:B74) -> 1828.598529 | D75: =SUM(D71:D74) -> 68375.48321 | E75: =SUM(E71:E74) -> 68375.48321
A76: Total Allocated Expenses | B76: =B75+B69 -> 638471.4475 | D76: =D75+D69 -> 708334.0609 | E76: =E75+E69 -> 708334.0609
A77: Net Farm Income From Operations (NFIFO) | B77: =(((B23-B69)+B28)-B75) -> 72699.5889 | D77: 73735.36396 | E77: 73735.36396 | G77: =AVERAGE(D77:E77) -> 73735.36396 | H77: =MIN(E77,D77) -> 73735.36396 | I77: =MAX(E77,D77) -> 73735.36396
A78: Gain (Loss) on Sale of All Farm Capital Assets | B78: ='Input Form'!F12 -> 5908 | D78: 2707.53424 | E78: 2707.53424 | G78: =AVERAGE(D78:E78) -> 2707.53424 | H78: =MIN(E78,D78) -> 2707.53424 | I78: =MAX(E78,D78) -> 2707.53424
A79: Net Farm Income (NFI) | B79: =B78+B77 -> 78607.5889 | D79: =D78+D77 -> 76442.8982 | E79: =E78+E77 -> 76442.8982
A80: Value of Unpaid Labor | B80: 30000 | D80: 25000 | E80: 30000 | G80: =AVERAGE(D80:E80) -> 27500 | H80: =MIN(E80,D80) -> 25000 | I80: =MAX(E80,D80) -> 30000
A81: Value of Unpaid Management | B81: 20000 | D81: 15000 | E81: 20000 | G81: =AVERAGE(D81:E81) -> 17500 | H81: =MIN(E81,D81) -> 15000 | I81: =MAX(E81,D81) -> 20000
A82: Total Unpaid Labor | B82: =B81+B80 -> 50000 | D82: =D81+D80 -> 40000 | E82: =E81+E80 -> 50000
A83: Working Capital: Gross Income | B83: ='Balance Sheet'!B48/B29 -> 0.2217469384 | D83: ='Balance Sheet'!I48/D29 -> 0.1986745928 | E83: ='Balance Sheet'!J48/E29 -> 0.1925356802
A84: Working Capital: Operating Expense | B84: ='Balance Sheet'!B48/B76 -> 0.2469961666 | D84: ='Balance Sheet'!I48/D76 -> 0.2193559976 | E84: ='Balance Sheet'!J48/E76 -> 0.2125780433
A85: Average Assets | B85: =AVERAGE('Balance Sheet'!J23,'Balance Sheet'!B23) -> 1576829.78 | D85: ='Balance Sheet'!I23 -> 1780940.432 | E85: =AVERAGE('Balance Sheet'!I23:J23) -> 1812700.496
A86: Rate of Return on Assets (ROROA) | B86: =(B77+B47+B48-B82)/B85 -> 0.04029764972 | D86: =(D77+D47+D48-D82)/D85 -> 0.04106522659 | E86: =(E77+E47+E48-E82)/E85 -> 0.03482909755
A88: Operating Profit Margin (OPM) | B88: =(B77+B47+B48-B80-B81)/B29 -> 0.08934915917
A89: Operating Expense Ratio (OER) | B89: =(B69-B47-B48)/B29 -> 0.8377730156
A90: Asset Turn Over Ratio (ATO) | B90: =B29/('Balance Sheet'!B23+'Balance Sheet'!J23/2) -> 0.3187065093
A92: Calculated values of-
A93: Unpaid Labor | B93: =(('Input Form'!$D$40*'Input Form'!$H$40)+('Input Form'!$D$41*'Input Form'!$H$41)+('Input Form'!$D$42*'Input Form'!$H$42)+('Input Form'!$D$43+'Input Form'!$H$43)+('Input Form'!$D$46*'Input Form'!$H$46))*'Input Form'!$F$54 -> 59385
A94: Unpaid Management | B94: =$B$29*'Input Form'!$F$53 -> 42670.26218

Sheet Annual Cash Flow Projection
A1: Input from AgFA | N1: ='Balance Sheet'!W1 -> 0.1 | O1: ='Balance Sheet'!X1 -> 0.175 | P1: ='Balance Sheet'!Y1 -> 0.25 | Q1: ='Balance Sheet'!Z1 -> 0.325 | R1: ='Balance Sheet'!AA1 -> 0.4
A2: Input from your own records/projections
A3: Calculations performed by the tool
A4: =FarmID -> Farm1
A5: Cash Flow Statement- Annual | C5: Projection | F5: ↓ | G5: ↓ | I5: Previous Years Values | K5: Range
A6: Cash Provided by Operating Activities | C6: ='Input Form'!F8 -> 2011 | F6: ='Input Form'!F6 -> 2009 | G6: ='Input Form'!F7 -> 2010 | I6: Average | J6: Min | K6: Max | N6: Sensitivity Analysis for: | Q6: ='Input Form'!F8 -> 2011
A7: Cash Received from Operations | C7: ='Farm Earnings'!B23-'Farm Earnings'!B21 -> 698561.2216 | F7: 397613 | G7: 397613 | I7: =AVERAGE(F7:G7) -> 397613 | J7: =MIN(G7,F7) -> 397613 | K7: =MAX(G7,F7) -> 397613
A8: + Total Non-Farm Income | C8: 16313 | F8: 2493 | G8: 2493 | I8: 2493 | J8: 2493 | K8: 2493 | M8: Cash Flow | N8: Increase in operating expenses | T8: Decrease in operating expenses
A9: - Cash Paid for Purchased Resale Livestock | C9: =-'Input Form'!F21 -> 0 | F9: 0 | G9: 0 | I9: 0 | J9: 0 | K9: 0 | N9: =N$1 -> 0.1 | O9: =O$1 -> 0.175 | P9: =P$1 -> 0.25 | Q9: =Q$1 -> 0.325 | R9: =R$1 -> 0.4 | T9: =N$1 -> 0.1 | U9: =O$1 -> 0.175 | V9: =P$1 -> 0.25 | W9: =Q$1 -> 0.325 | X9: =R$1 -> 0.4
A10: - Cash Paid for Purchased Feed | C10: =-'Farm Earnings'!B42 -> -187231.8286 | F10: -44635 | G10: -44635 | I10: -44635 | J10: -44635 | K10: -44635 | M10: Cash at end of year | N10: =(($C$13+$C$10+$C$12)*(1+N9)-($C$13+$C$12+$C$10))+$C$36 -> -50579.99038 | O10: =(($C$13+$C$10+$C$12)*(1+O9)-($C$13+$C$12+$C$10))+$C$36 -> -95264.98316 | P10: =(($C$13+$C$10+$C$12)*(1+P9)-($C$13+$C$12+$C$10))+$C$36 -> -139949.9759 | Q10: =(($C$13+$C$10+$C$12)*(1+Q9)-($C$13+$C$12+$C$10))+$C$36 -> -184634.9687 | R10: =(($C$13+$C$10+$C$12)*(1+R9)-($C$13+$C$12+$C$10))+$C$36 -> -229319.9615 | T10: =(($C$13+$C$10+$C$12)*(1-N9)-($C$13+$C$12+$C$10))+$C$36 -> 68579.99038 | U10: =(($C$13+$C$10+$C$12)*(1-O9)-($C$13+$C$12+$C$10))+$C$36 -> 113264.9832 | V10: =(($C$13+$C$10+$C$12)*(1-P9)-($C$13+$C$12+$C$10))+$C$36 -> 157949.9759 | W10: =(($C$13+$C$10+$C$12)*(1-Q9)-($C$13+$C$12+$C$10))+$C$36 -> 202634.9687 | X10: =(($C$13+$C$10+$C$12)*(1-R9)-($C$13+$C$12+$C$10))+$C$36 -> 247319.9615 | Z10: =($C$13+$C$12+$C$10)-(($C$13+$C$12+$C$10)*(1-T9)) -> -59579.99038
A11: - Cash Interest Paid | C11: =-SUM('Farm Earnings'!B47,'Farm Earnings'!B48) -> -40842.94523 | F11: -30292 | G11: -30292 | I11: -30292 | J11: -30292 | K11: -30292 | Z11: =($C$13+$C$12+$C$10) -> -595799.9038
A12: - Wages and Benefits Paid | C12: =-SUM('Farm Earnings'!B40,'Farm Earnings'!B41,'Farm Earnings'!B49,'Farm Earnings'!B50,'Farm Earnings'!B51,'Farm Earnings'!B52) -> -93034.62418 | F12: -5262 | G12: -5262 | I12: -5262 | J12: -5262 | K12: -5262 | N12: Increase in operating revenue | T12: Decrease in operating revenue
A13: - Cash Paid for Other Operating Expenses | C13: =-('Farm Earnings'!B69+(SUM(C9:C12))) -> -315533.451 | F13: -215584 | G13: -215584 | I13: -215584 | J13: -215584 | K13: -215584 | M13: Cash at end of year | N13: =((($C$7*(1+N9)))-$C$7+$C$36) -> 78856.12216 | O13: =((($C$7*(1+O9)))-$C$7+$C$36) -> 131248.2138 | P13: =((($C$7*(1+P9)))-$C$7+$C$36) -> 183640.3054 | Q13: =((($C$7*(1+Q9)))-$C$7+$C$36) -> 236032.397 | R13: =((($C$7*(1+R9)))-$C$7+$C$36) -> 288424.4887 | T13: =(($C$7*(1-T9)))-$C$7+$C$36 -> -60856.12216 | U13: =(($C$7*(1-U9)))-$C$7+$C$36 -> -113248.2138 | V13: =(($C$7*(1-V9)))-$C$7+$C$36 -> -165640.3054 | W13: =(($C$7*(1-W9)))-$C$7+$C$36 -> -218032.397 | X13: =(($C$7*(1-X9)))-$C$7+$C$36 -> -270424.4887
A14: - Cash Family Living Expenditures | C14: 0 | F14: -27000 | G14: -27000 | I14: -27000 | J14: -27000 | K14: -27000
A15: - Income & Social Security Taxes Paid | C15: =-('Farm Earnings'!B62+'Input Form'!F23) -> -1279.485714 | F15: 0 | G15: 0 | I15: 0 | J15: 0 | K15: 0 | N15: Increase in Interest expenses | T15: Decrease in Interest expenses
A16: Net Cash Provided by Operating Activities | C16: =SUM(C7:C15) -> 76951.88695 | F16: =SUM(F7:F15) -> 77333 | G16: =SUM(G7:G15) -> 77333 | N16: =N$1 -> 0.1 | O16: =O$1 -> 0.175 | P16: =P$1 -> 0.25 | Q16: =Q$1 -> 0.325 | R16: =R$1 -> 0.4 | T16: =N$1 -> 0.1 | U16: =O$1 -> 0.175 | V16: =P$1 -> 0.25 | W16: =Q$1 -> 0.325 | X16: =R$1 -> 0.4
A17: Cash Provided by Investing Activities | M17: Cash at end of year | N17: =((('Farm Earnings'!$B$48-('Farm Earnings'!$B$48)*(1+N16))+$C$36)) -> 6545.447015 | O17: =((('Farm Earnings'!$B$48-('Farm Earnings'!$B$48)*(1+O16))+$C$36)) -> 4704.532277 | P17: =((('Farm Earnings'!$B$48-('Farm Earnings'!$B$48)*(1+P16))+$C$36)) -> 2863.617538 | Q17: =((('Farm Earnings'!$B$48-('Farm Earnings'!$B$48)*(1+Q16))+$C$36)) -> 1022.7028 | R17: =((('Farm Earnings'!$B$48-('Farm Earnings'!$B$48)*(1+R16))+$C$36)) -> -818.2119385 | T17: =('Farm Earnings'!$B$48-(('Farm Earnings'!$B$48*(1-T16)))+$C$36) -> 11454.55298 | U17: =('Farm Earnings'!$B$48-(('Farm Earnings'!$B$48*(1-U16)))+$C$36) -> 13295.46772 | V17: =('Farm Earnings'!$B$48-(('Farm Earnings'!$B$48*(1-V16)))+$C$36) -> 15136.38246 | W17: =('Farm Earnings'!$B$48-(('Farm Earnings'!$B$48*(1-W16)))+$C$36) -> 16977.2972 | X17: =('Farm Earnings'!$B$48-(('Farm Earnings'!$B$48*(1-X16)))+$C$36) -> 18818.21194
A18: Cash Received from Sale of Assets | C18: ='Input Form'!F30 -> 8092 | F18: 0 | G18: 0 | I18: =AVERAGE(F18:G18) -> 0 | J18: =MIN(G18,F18) -> 0 | K18: =MAX(G18,F18) -> 0 | M18: Ending Liquidity | N18: ='Balance Sheet'!$B$48-('Farm Earnings'!$B$48*(1+N16)-'Farm Earnings'!$B$48) -> 155245.447 | O18: ='Balance Sheet'!$B$48-('Farm Earnings'!$B$48*(1+O16)-'Farm Earnings'!$B$48) -> 153404.5323 | P18: ='Balance Sheet'!$B$48-('Farm Earnings'!$B$48*(1+P16)-'Farm Earnings'!$B$48) -> 151563.6175 | Q18: ='Balance Sheet'!$B$48-('Farm Earnings'!$B$48*(1+Q16)-'Farm Earnings'!$B$48) -> 149722.7028 | R18: ='Balance Sheet'!$B$48-('Farm Earnings'!$B$48*(1+R16)-'Farm Earnings'!$B$48) -> 147881.7881 | T18: ='Balance Sheet'!$B$48-('Farm Earnings'!$B$48*(1-N16)-'Farm Earnings'!$B$48) -> 160154.553 | U18: ='Balance Sheet'!$B$48-('Farm Earnings'!$B$48*(1-O16)-'Farm Earnings'!$B$48) -> 161995.4677 | V18: ='Balance Sheet'!$B$48-('Farm Earnings'!$B$48*(1-P16)-'Farm Earnings'!$B$48) -> 163836.3825 | W18: ='Balance Sheet'!$B$48-('Farm Earnings'!$B$48*(1-Q16)-'Farm Earnings'!$B$48) -> 165677.2972 | X18: ='Balance Sheet'!$B$48-('Farm Earnings'!$B$48*(1-R16)-'Farm Earnings'!$B$48) -> 167518.2119
A19: + Cash Received from Sale of Personal Assets | C19: ='Input Form'!F31 -> 1252 | F19: 0 | G19: 0 | I19: 0 | J19: 0 | K19: 0
A20: - Amount Paid for Breeding Livestock | C20: =-'Input Form'!F32 -> -16732 | F20: 0 | G20: 0 | I20: 0 | J20: 0 | K20: 0 | M20: Working Capital | N20: Increase in operating expenses | T20: Decrease in operating expenses
A21: - Boot Price Paid for Machinery & Equipment | C21: =-'Input Form'!F33 -> -34070 | F21: -41187 | G21: -41187 | I21: -41187 | J21: -41187 | K21: -41187 | N21: =N$1 -> 0.1 | O21: =O$1 -> 0.175 | P21: =P$1 -> 0.25 | Q21: =Q$1 -> 0.325 | R21: =R$1 -> 0.4 | T21: =N$1 -> 0.1 | U21: =O$1 -> 0.175 | V21: =P$1 -> 0.25 | W21: =Q$1 -> 0.325 | X21: =R$1 -> 0.4
A22: - Amount Paid for Buildings | C22: =-'Input Form'!F34 -> -59349 | F22: 0 | G22: 0 | I22: 0 | J22: 0 | K22: 0 | M22: Ending Liquidity | N22: =($C$13+$C$12+$C$10)*(1+N21)-($C$13+$C$12+$C$10)+'Balance Sheet'!$B$48 -> 98120.00962 | O22: =($C$13+$C$12+$C$10)*(1+O21)-($C$13+$C$12+$C$10)+'Balance Sheet'!$B$48 -> 53435.01684 | P22: =($C$13+$C$12+$C$10)*(1+P21)-($C$13+$C$12+$C$10)+'Balance Sheet'!$B$48 -> 8750.02406 | Q22: =($C$13+$C$12+$C$10)*(1+Q21)-($C$13+$C$12+$C$10)+'Balance Sheet'!$B$48 -> -35934.96872 | R22: =($C$13+$C$12+$C$10)*(1+R21)-($C$13+$C$12+$C$10)+'Balance Sheet'!$B$48 -> -80619.9615 | T22: =($C$13+$C$12+$C$10)*(1-N21)-($C$13+$C$12+$C$10)+'Balance Sheet'!$B$48 -> 217279.9904 | U22: =($C$13+$C$12+$C$10)*(1-O21)-($C$13+$C$12+$C$10)+'Balance Sheet'!$B$48 -> 261964.9832 | V22: =($C$13+$C$12+$C$10)*(1-P21)-($C$13+$C$12+$C$10)+'Balance Sheet'!$B$48 -> 306649.9759 | W22: =($C$13+$C$12+$C$10)*(1-Q21)-($C$13+$C$12+$C$10)+'Balance Sheet'!$B$48 -> 351334.9687 | X22: =($C$13+$C$12+$C$10)*(1-R21)-($C$13+$C$12+$C$10)+'Balance Sheet'!$B$48 -> 396019.9615
A23: - Amount Paid for Land | C23: =-'Input Form'!F35 -> -23028 | F23: 0 | G23: 0 | I23: 0 | J23: 0 | K23: 0
A24: - Amount Paid for Coop Stock, Etc. | C24: =-'Input Form'!F36 -> -8399 | F24: 0 | G24: 0 | I24: 0 | J24: 0 | K24: 0 | N24: Increase in operating revenue | T24: Decrease in operating revenue
A25: - Amount Paid for Personal Assets | C25: =-'Input Form'!F37 -> -5139 | F25: 0 | G25: 0 | I25: 0 | J25: 0 | K25: 0 | M25: Ending Liquidity | N25: =(($C$7*(1+N21)))-$C$7+'Balance Sheet'!$B$48 -> 227556.1222 | O25: =(($C$7*(1+O21)))-$C$7+'Balance Sheet'!$B$48 -> 279948.2138 | P25: =(($C$7*(1+P21)))-$C$7+'Balance Sheet'!$B$48 -> 332340.3054 | Q25: =(($C$7*(1+Q21)))-$C$7+'Balance Sheet'!$B$48 -> 384732.397 | R25: =(($C$7*(1+R21)))-$C$7+'Balance Sheet'!$B$48 -> 437124.4887 | T25: =(($C$7*(1-N21)))-$C$7+'Balance Sheet'!$B$48 -> 87843.87784 | U25: =(($C$7*(1-O21)))-$C$7+'Balance Sheet'!$B$48 -> 35451.78621 | V25: =(($C$7*(1-P21)))-$C$7+'Balance Sheet'!$B$48 -> -16940.30541 | W25: =(($C$7*(1-Q21)))-$C$7+'Balance Sheet'!$B$48 -> -69332.39704 | X25: =(($C$7*(1-R21)))-$C$7+'Balance Sheet'!$B$48 -> -121724.4887
A26: Net Cash Provided by Investing Activities | C26: =SUM(C18:C25) -> -137373 | F26: =SUM(F18:F25) -> -41187 | G26: =SUM(G18:G25) -> -41187
A27: Cash Provided by Financing Activities
A28: Net Proceeds from Operating & CCC Loans | C28: ='Input Form'!E63+'Input Form'!E69+'Input Form'!E75 -> 14553 | F28: -9693 | G28: -9693 | I28: =AVERAGE(F28:G28) -> -9693 | J28: =MIN(G28,F28) -> -9693 | K28: =MAX(G28,F28) -> -9693
A29: + Net Capital Contribution, Gifts, Etc. | C29: ='Balance Sheet'!C40+'Input Form'!F60 -> -31.5991 | F29: 0 | G29: 0 | I29: =AVERAGE(F29:G29) -> 0 | J29: =MIN(G29,F29) -> 0 | K29: =MAX(G29,F29) -> 0
A30: + Proceeds from Added Term Debt | C30: ='Input Form'!F57 -> 168962 | F30: 49135 | G30: 49135 | I30: =AVERAGE(F30:G30) -> 49135 | J30: =MIN(G30,F30) -> 49135 | K30: =MAX(G30,F30) -> 49135
A31: - Repayment of Term Debt | C31: =-'Input Form'!F58 -> -62481 | F31: -46977 | G31: -46977 | I31: =AVERAGE(F31:G31) -> -46977 | J31: =MIN(G31,F31) -> -46977 | K31: =MAX(G31,F31) -> -46977
A32: + Net Proceeds from Personal Loans | C32: ='Input Form'!F59 -> 806 | F32: 0 | G32: 0 | I32: =AVERAGE(F32:G32) -> 0 | J32: =MIN(G32,F32) -> 0 | K32: =MAX(G32,F32) -> 0
A33: Net Cash Provided by Financing Activities | C33: =SUM(C28:C32) -> 121808.4009 | F33: =SUM(F28:F32) -> -7535 | G33: =SUM(G28:G32) -> -7535
A34: Cash Provided by Cash Accounts
A35: Cash at Beginning of Year | C35: ='Balance Sheet'!J8 -> 27783.31356 | F35: 37622 | G35: 37622 | I35: =AVERAGE(F35:G35) -> 37622 | J35: =MIN(G35,F35) -> 37622 | K35: =MAX(G35,F35) -> 37622
A36: - Cash at End of Year | C36: ='Balance Sheet'!B8 -> 9000 | F36: -66884 | G36: -66884 | I36: =AVERAGE(F36:G36) -> -66884 | J36: =MIN(G36,F36) -> -66884 | K36: =MAX(G36,F36) -> -66884
A37: Net Cash Provided by Cash Accounts | C37: =C35-C36 -> 18783.31356 | F37: =F35+F36 -> -29262 | G37: =G35-G36 -> 104506
A38: Cash Flow Imbalance | C38: =C16+C26+C33+C37 -> 80170.6014 | F38: =F16+F26+F33+F37 -> -651 | G38: =G16+G26+G33+G37 -> 133117
A39: Cash Flow Imbalance % Cash Income | C39: =C38/C7 -> 0.1147653189 | F39: =F38/F7 -> -0.001637270411 | G39: =G38/G7 -> 0.3347903615
A40: Cash Flow Coverage Ratio, Farm Only | C40: =(C35+C7+C18+C28+C29+C30)/(C9+C10+C11+C12+C13+C15+C20+C21+C22+C23+C24+C31) -> -1.090190362 | F40: =(F35+F7+F18+F28+F29+F30)/(F9+F10+F11+F12+F13+F15+F20+F21+F22+F23+F24+F31) -> -1.236340858 | G40: =(G35+G7+G18+G28+G29+G30)/(G9+G10+G11+G12+G13+G15+G20+G21+G22+G23+G24+G31) -> -1.236340858
A41: Cash Flow Coverage Ratio, Farm + Personal | C41: =(C35+C7+C18+C28+C29+C30+C32+C18+C8)/(C9+C10+C11+C12+C13+C15+C20+C21+C22+C23+C24+C31+C25+C14) -> -1.113337619 | F41: =(F35+F7+F18+F28+F29+F30+F32+F18+F8)/(F9+F10+F11+F12+F13+F15+F20+F21+F22+F23+F24+F31+F25+F14) -> -1.161175557 | G41: =(G35+G7+G18+G28+G29+G30+G32+G18+G8)/(G9+G10+G11+G12+G13+G15+G20+G21+G22+G23+G24+G31+G25+G14) -> -1.161175557
A43: Average Milk Price Needed to Break Even on Cash Flow | E43: ='Input Form'!$F$50-$C$36 -> 266000
A44: =IF($C$36<1, ($E$43/'Input Form'!F49),($E$44/'Input Form'!F49)) -> 12.90909091 | E44: ='Input Form'!$F$50+$C$36 -> 284000

Sheet Curent Monthly Cash Flow
C1: 0 | D1: Comparisons To Annual Projection | Y1: ='Balance Sheet'!W1 -> 0.1 | Z1: ='Balance Sheet'!X1 -> 0.175 | AA1: ='Balance Sheet'!Y1 -> 0.25 | AB1: ='Balance Sheet'!Z1 -> 0.325 | AC1: ='Balance Sheet'!AA1 -> 0.4
A2: Input from your own records/projections | D2: Monthly Cash Flow ACTUAL (Statement)
A3: Calculations performed by the tool
A4: =FarmID -> Farm1 | D4: Enter your monthly ACTUAL values in the BROWN cells below. | P4: Actual Yearly | Q4: Rolling | S4: Predicted | U4: Monthly Range
A5: Cash Flow Statement- Monthly | B5: ='Annual Cash Flow Projection'!C5 -> Projection | P5: Totals | Q5: Actual Totals | S5: Monthly Averages | U5: $
A6: Cash Provided by Operating Activities | B6: ='Input Form'!F8 -> 2011 | D6: January | E6: February | F6: March | G6: April | H6: May | I6: June | J6: July | K6: August | L6: September | M6: October | N6: November | O6: December | P6: $ | Q6: % of Predicted | S6: $ | U6: MIN | V6: MAX | X6: Sensitivity Analysis for Predicted: | Y6: ='Input Form'!F8 -> 2011 | AA6: Projected
A7: Cash Received from Operations | B7: ='Annual Cash Flow Projection'!C7 -> 698561.2216 | D7: 65000 | E7: 68000 | F7: 66700 | G7: 65000 | H7: 65600 | I7: 64500 | J7: 62000 | K7: 60000 | L7: 64000 | M7: 63000 | N7: 64000 | O7: 64000 | P7: =SUM(D7:O7) -> 771800 | Q7: =P7/B7 -> 1.104842319 | S7: =+B7/12 -> 58213.43514 | U7: =MIN(D7:O7) -> 60000 | V7: =MAX(D7:O7) -> 68000
A8: + Total Non-Farm Income | B8: ='Annual Cash Flow Projection'!C8 -> 16313 | D8: 40000 | E8: 0 | F8: 0 | G8: 0 | H8: 0 | I8: 5666 | J8: 5667 | K8: 5667 | L8: 0 | M8: 0 | N8: 0 | O8: 30000 | P8: =SUM(D8:O8) -> 87000 | Q8: =P8/B8 -> 5.333169865 | S8: 1359.416667 | U8: =MIN(D8:O8) -> 0 | V8: =MAX(D8:O8) -> 40000 | X8: Cash Flow | Y8: Increase in operating expenses | AE8: Decrease in operating expenses
A9: - Cash Paid for Purchased Resale Livestock | B9: ='Annual Cash Flow Projection'!C9 -> 0 | D9: 0 | E9: 0 | F9: 0 | G9: 0 | H9: 0 | I9: 0 | J9: 0 | K9: 0 | L9: 0 | M9: 0 | N9: 0 | O9: 0 | P9: 0 | S9: 0 | U9: 0 | V9: 0 | Y9: =Y$1 -> 0.1 | Z9: =Z$1 -> 0.175 | AA9: =AA$1 -> 0.25 | AB9: =AB$1 -> 0.325 | AC9: =AC$1 -> 0.4 | AE9: =Y$1 -> 0.1 | AF9: =Z$1 -> 0.175 | AG9: =AA$1 -> 0.25 | AH9: =AB$1 -> 0.325 | AI9: =AC$1 -> 0.4
A10: - Cash Paid for Purchased Feed | B10: ='Annual Cash Flow Projection'!C10 -> -187231.8286 | D10: 18000 | E10: 18500 | F10: 19000 | G10: 17500 | H10: 16000 | I10: 14000 | J10: 14000 | K10: 15000 | L10: 16000 | M10: 17500 | N10: 18000 | O10: 19000 | P10: 202500 | Q10: -1.08154688 | S10: -15602.65238 | U10: 14000 | V10: 19000 | X10: Cash at end of year | Y10: =((($B$13+$B$12+$B$10)*(1+Y9))-($B$13+$B$12+$B$10))+$B$36 -> -50579.99038 | Z10: =((($B$13+$B$12+$B$10)*(1+Z9))-($B$13+$B$12+$B$10))+$B$36 -> -95264.98316 | AA10: =((($B$13+$B$12+$B$10)*(1+AA9))-($B$13+$B$12+$B$10))+$B$36 -> -139949.9759 | AB10: =((($B$13+$B$12+$B$10)*(1+AB9))-($B$13+$B$12+$B$10))+$B$36 -> -184634.9687 | AC10: =((($B$13+$B$12+$B$10)*(1+AC9))-($B$13+$B$12+$B$10))+$B$36 -> -229319.9615 | AE10: =-((($B$13+$B$12+$B$10))-(($B$13+$B$12+$B$10)*(1-AE9)))+$B$36 -> 68579.99038 | AF10: =-((($B$13+$B$12+$B$10))-(($B$13+$B$12+$B$10)*(1-AF9)))+$B$36 -> 113264.9832 | AG10: =-((($B$13+$B$12+$B$10))-(($B$13+$B$12+$B$10)*(1-AG9)))+$B$36 -> 157949.9759 | AH10: =-((($B$13+$B$12+$B$10))-(($B$13+$B$12+$B$10)*(1-AH9)))+$B$36 -> 202634.9687 | AI10: =-((($B$13+$B$12+$B$10))-(($B$13+$B$12+$B$10)*(1-AI9)))+$B$36 -> 247319.9615
A11: - Cash Interest Paid | B11: ='Annual Cash Flow Projection'!C11 -> -40842.94523 | D11: 3958 | E11: 4000 | F11: 4000 | G11: 3800 | H11: 3800 | I11: 4500 | J11: 4500 | K11: 4500 | L11: 4500 | M11: 4500 | N11: 5000 | O11: 5000 | P11: 52058 | Q11: -1.274589766 | S11: -3403.578769 | U11: 3800 | V11: 5000
A12: - Wages and Benefits Paid | B12: ='Annual Cash Flow Projection'!C12 -> -93034.62418 | D12: 7000 | E12: 7000 | F12: 6500 | G12: 6500 | H12: 8000 | I12: 8000 | J12: 8000 | K12: 8000 | L12: 8000 | M12: 8500 | N12: 8000 | O12: 7000 | P12: 90500 | Q12: -0.9727561196 | S12: -7752.885348 | U12: 6500 | V12: 8500 | Y12: Increase in operating revenue | AE12: Decrease in operating revenue
A13: - Cash Paid for Other Operating Expenses | B13: ='Annual Cash Flow Projection'!C13 -> -315533.451 | D13: 23000 | E13: 24000 | F13: 25000 | G13: 26000 | H13: 27000 | I13: 30000 | J13: 30000 | K13: 28000 | L13: 27000 | M13: 27000 | N13: 32000 | O13: 27500 | P13: 326500 | Q13: -1.034755583 | S13: -26294.45425 | U13: 23000 | V13: 32000 | X13: Cash at end of year | Y13: =($B$7*(1+Y9))-$B$7+$B$36 -> 78856.12216 | Z13: =($B$7*(1+Z9))-$B$7+$B$36 -> 131248.2138 | AA13: =($B$7*(1+AA9))-$B$7+$B$36 -> 183640.3054 | AB13: =($B$7*(1+AB9))-$B$7+$B$36 -> 236032.397 | AC13: =($B$7*(1+AC9))-$B$7+$B$36 -> 288424.4887 | AE13: =(($B$7*(1-AE9)))-$B$7+$B$36 -> -60856.12216 | AF13: =(($B$7*(1-AF9)))-$B$7+$B$36 -> -113248.2138 | AG13: =(($B$7*(1-AG9)))-$B$7+$B$36 -> -165640.3054 | AH13: =(($B$7*(1-AH9)))-$B$7+$B$36 -> -218032.397 | AI13: =(($B$7*(1-AI9)))-$B$7+$B$36 -> -270424.4887
A14: - Cash Family Living Expenditures | B14: ='Annual Cash Flow Projection'!C14 -> 0 | D14: 4700 | E14: 0 | F14: 0 | G14: 8000 | H14: 4700 | I14: 0 | J14: 0 | K14: 10000 | L14: 0 | M14: 0 | N14: 10000 | O14: 30000 | P14: 67400 | S14: 0 | U14: 0 | V14: 30000
A15: - Income & Social Security Taxes Paid | B15: ='Annual Cash Flow Projection'!C15 -> -1279.485714 | D15: 0 | E15: 0 | F15: 1250 | G15: 0 | H15: 0 | I15: 1400 | J15: 0 | K15: 0 | L15: 1500 | M15: 0 | N15: 0 | O15: 1250 | P15: 5400 | Q15: -4.220445715 | S15: -106.6238095 | U15: 0 | V15: 1500 | X15: Working Capital | Y15: Increase in operating expenses | AE15: Decrease in operating expenses
A16: Net Cash Provided by Operating Activities | B16: ='Annual Cash Flow Projection'!C16 -> 76951.88695 | D16: =SUM(D7:D8)-SUM(D9:D15) -> 48342 | E16: 14500 | F16: 10950 | G16: 3200 | H16: 6100 | I16: 12266 | J16: 11167 | K16: 167 | L16: 7000 | M16: 5500 | N16: -9000 | O16: 4250 | P16: 114442 | Q16: 1.487189003 | S16: 6412.657245 | U16: -9000 | V16: 48342 | Y16: =Y$1 -> 0.1 | Z16: =Z$1 -> 0.175 | AA16: =AA$1 -> 0.25 | AB16: =AB$1 -> 0.325 | AC16: =AC$1 -> 0.4 | AE16: =Y$1 -> 0.1 | AF16: =Z$1 -> 0.175 | AG16: =AA$1 -> 0.25 | AH16: =AB$1 -> 0.325 | AI16: =AC$1 -> 0.4
A17: Cash Provided by Investing Activities | X17: Ending Liquidity | Y17: =((($B$13+$B$12+$B$10)*(1+Y16)-($B$13+$B$12+$B$10))+'Balance Sheet'!$B$48) -> 98120.00962 | Z17: =((($B$13+$B$12+$B$10)*(1+Z16)-($B$13+$B$12+$B$10))+'Balance Sheet'!$B$48) -> 53435.01684 | AA17: =((($B$13+$B$12+$B$10)*(1+AA16)-($B$13+$B$12+$B$10))+'Balance Sheet'!$B$48) -> 8750.02406 | AB17: =((($B$13+$B$12+$B$10)*(1+AB16)-($B$13+$B$12+$B$10))+'Balance Sheet'!$B$48) -> -35934.96872 | AC17: =((($B$13+$B$12+$B$10)*(1+AC16)-($B$13+$B$12+$B$10))+'Balance Sheet'!$B$48) -> -80619.9615 | AE17: =-(((($B$13+$B$12+$B$10))-(($B$13+$B$12+$B$10)*(1-AE16)))-'Balance Sheet'!$B$48) -> 217279.9904 | AF17: =-(((($B$13+$B$12+$B$10))-(($B$13+$B$12+$B$10)*(1-AF16)))-'Balance Sheet'!$B$48) -> 261964.9832 | AG17: =-(((($B$13+$B$12+$B$10))-(($B$13+$B$12+$B$10)*(1-AG16)))-'Balance Sheet'!$B$48) -> 306649.9759 | AH17: =-(((($B$13+$B$12+$B$10))-(($B$13+$B$12+$B$10)*(1-AH16)))-'Balance Sheet'!$B$48) -> 351334.9687 | AI17: =-(((($B$13+$B$12+$B$10))-(($B$13+$B$12+$B$10)*(1-AI16)))-'Balance Sheet'!$B$48) -> 396019.9615
A18: Cash Received from Sale of Assets | B18: ='Annual Cash Flow Projection'!C18 -> 8092 | D18: 0 | E18: 0 | F18: 0 | G18: 0 | H18: 0 | I18: 0 | J18: 0 | K18: 0 | L18: 0 | M18: 0 | N18: 0 | O18: 500 | P18: 500 | Q18: =P18/B18 -> 0.06178942165 | S18: =+B18/12 -> 674.3333333 | U18: 0 | V18: 500 | Y18: =((($B$13+$B$12+$B$10)*(1+Y16)-($B$13+$B$12+$B$10))+'Balance Sheet'!$B$48) -> 98120.00962
A19: + Cash Received from Sale of Personal Assets | B19: ='Annual Cash Flow Projection'!C19 -> 1252 | D19: 0 | E19: 0 | F19: 0 | G19: 0 | H19: 0 | I19: 0 | J19: 0 | K19: 0 | L19: 0 | M19: 0 | N19: 0 | O19: 0 | P19: 0 | Q19: =P19/B19 -> 0 | S19: 104.3333333 | U19: 0 | V19: 0 | Y19: Increase in operating revenue | AE19: Decrease in operating revenue
A20: - Amount Paid for Breeding Livestock | B20: ='Annual Cash Flow Projection'!C20 -> -16732 | D20: 0 | E20: 0 | F20: 0 | G20: 0 | H20: 0 | I20: 0 | J20: 0 | K20: 0 | L20: 0 | M20: 0 | N20: 0 | O20: 0 | P20: 0 | Q20: 0 | S20: -1394.333333 | U20: 0 | V20: 0 | X20: Ending Liquidity | Y20: =((($B$7*(1+Y16)))-$B$7+'Balance Sheet'!$B$48) -> 227556.1222 | Z20: =((($B$7*(1+Z16)))-$B$7+'Balance Sheet'!$B$48) -> 279948.2138 | AA20: =((($B$7*(1+AA16)))-$B$7+'Balance Sheet'!$B$48) -> 332340.3054 | AB20: =((($B$7*(1+AB16)))-$B$7+'Balance Sheet'!$B$48) -> 384732.397 | AC20: =((($B$7*(1+AC16)))-$B$7+'Balance Sheet'!$B$48) -> 437124.4887 | AE20: =((($B$7*(1-AE16))-$B$7)+'Balance Sheet'!$B$48) -> 87843.87784 | AF20: =((($B$7*(1-AF16))-$B$7)+'Balance Sheet'!$B$48) -> 35451.78621 | AG20: =((($B$7*(1-AG16))-$B$7)+'Balance Sheet'!$B$48) -> -16940.30541 | AH20: =((($B$7*(1-AH16))-$B$7)+'Balance Sheet'!$B$48) -> -69332.39704 | AI20: =((($B$7*(1-AI16))-$B$7)+'Balance Sheet'!$B$48) -> -121724.4887
A21: - Boot Price Paid for Machinery & Equipment | B21: ='Annual Cash Flow Projection'!C21 -> -34070 | D21: 0 | E21: 0 | F21: 0 | G21: 0 | H21: 0 | I21: 0 | J21: 0 | K21: 0 | L21: 0 | M21: 0 | N21: 0 | O21: 12000 | P21: 12000 | Q21: -0.3522160258 | S21: -2839.166667 | U21: 0 | V21: 12000
A22: - Amount Paid for Buildings | B22: ='Annual Cash Flow Projection'!C22 -> -59349 | D22: 0 | E22: 0 | F22: 0 | G22: 0 | H22: 0 | I22: 0 | J22: 0 | K22: 0 | L22: 0 | M22: 0 | N22: 0 | O22: 0 | P22: 0 | Q22: 0 | S22: -4945.75 | U22: 0 | V22: 0 | AA22: Actual
A23: - Amount Paid for Land | B23: ='Annual Cash Flow Projection'!C23 -> -23028 | D23: 0 | E23: 0 | F23: 0 | G23: 0 | H23: 0 | I23: 0 | J23: 0 | K23: 0 | L23: 0 | M23: 0 | N23: 0 | O23: 0 | P23: 0 | Q23: 0 | S23: -1919 | U23: 0 | V23: 0
A24: - Amount Paid for Coop Stock, Etc. | B24: ='Annual Cash Flow Projection'!C24 -> -8399 | D24: 600 | E24: 600 | F24: 600 | G24: 600 | H24: 600 | I24: 700 | J24: 600 | K24: 600 | L24: 600 | M24: 600 | N24: 600 | O24: 600 | P24: 7300 | Q24: -0.8691510894 | S24: -699.9166667 | U24: 600 | V24: 700 | Y24: Increase in operating expenses | AE24: Decrease in operating expenses
A25: - Amount Paid for Personal Assets | B25: ='Annual Cash Flow Projection'!C25 -> -5139 | D25: 0 | E25: 0 | F25: 0 | G25: 0 | H25: 0 | I25: 0 | J25: 0 | K25: 0 | L25: 0 | M25: 0 | N25: 0 | O25: 0 | P25: 0 | Q25: 0 | S25: -428.25 | U25: 0 | V25: 0 | Y25: =Y$1 -> 0.1 | Z25: =Z$1 -> 0.175 | AA25: =AA$1 -> 0.25 | AB25: =AB$1 -> 0.325 | AC25: =AC$1 -> 0.4 | AE25: =Y$1 -> 0.1 | AF25: =Z$1 -> 0.175 | AG25: =AA$1 -> 0.25 | AH25: =AB$1 -> 0.325 | AI25: =AC$1 -> 0.4
A26: Net Cash Provided by Investing Activities | B26: ='Annual Cash Flow Projection'!C26 -> -137373 | D26: =D19+D18-SUM(D20:D25) -> -600 | E26: =E19+E18-SUM(E20:E25) -> -600 | F26: -600 | G26: -600 | H26: -600 | I26: -700 | J26: -600 | K26: -600 | L26: -600 | M26: -600 | N26: -600 | O26: -12100 | P26: =P19-P18-SUM(P20:P25) -> -19800 | Q26: 0.1441331266 | S26: -11447.75 | U26: -12100 | V26: -600 | X26: Cash at end of year | Y26: =-(((($P$13+$P$12+$P$10)*(1+Y25))-($P$13+$P$12+$P$10)))+$O$36 -> -57950 | Z26: =-(((($P$13+$P$12+$P$10)*(1+Z25))-($P$13+$P$12+$P$10)))+$O$36 -> -104412.5 | AA26: =-(((($P$13+$P$12+$P$10)*(1+AA25))-($P$13+$P$12+$P$10)))+$O$36 -> -150875 | AB26: =-(((($P$13+$P$12+$P$10)*(1+AB25))-($P$13+$P$12+$P$10)))+$O$36 -> -197337.5 | AC26: =-(((($P$13+$P$12+$P$10)*(1+AC25))-($P$13+$P$12+$P$10)))+$O$36 -> -243800 | AE26: =((($P$13+$P$12+$P$10))-(($P$13+$P$12+$P$10)*(1-AE25)))+$O$36 -> 65950 | AF26: =((($P$13+$P$12+$P$10))-(($P$13+$P$12+$P$10)*(1-AF25)))+$O$36 -> 112412.5 | AG26: =((($P$13+$P$12+$P$10))-(($P$13+$P$12+$P$10)*(1-AG25)))+$O$36 -> 158875 | AH26: =((($P$13+$P$12+$P$10))-(($P$13+$P$12+$P$10)*(1-AH25)))+$O$36 -> 205337.5 | AI26: =((($P$13+$P$12+$P$10))-(($P$13+$P$12+$P$10)*(1-AI25)))+$O$36 -> 251800 | AK26: =IF($O$36<0,((($P$13+$P$12+$P$10))-(($P$13+$P$12+$P$10)*(1-AE25))),(($P$13+$P$12+$P$10)*(1-AE25))-($P$13+$P$12+$P$10)) -> -61950
A27: Cash Provided by Financing Activities | AK27: =($P$13+$P$12+$P$10) -> 619500
A28: Net Proceeds from Operating & CCC Loans | B28: ='Annual Cash Flow Projection'!C28 -> 14553 | D28: 0 | E28: 0 | F28: 0 | G28: 0 | H28: 0 | I28: 0 | J28: 0 | K28: 0 | L28: 0 | M28: 0 | N28: 8700 | O28: 0 | P28: 8700 | Q28: =P28/B28 -> 0.5978148835 | S28: =+B28/12 -> 1212.75 | U28: 0 | V28: 8700 | Y28: Increase in operating revenue | AE28: Decrease in operating revenue
A29: + Net Capital Contribution, Gifts, Etc. | B29: ='Annual Cash Flow Projection'!C29 -> -31.5991 | D29: 0 | E29: 0 | F29: 0 | G29: 0 | H29: 0 | I29: 0 | J29: 0 | K29: 0 | L29: 0 | M29: 0 | N29: 0 | O29: 0 | P29: 0 | Q29: 0 | S29: -2.633258333 | U29: 0 | V29: 0 | X29: Cash at end of year | Y29: =($P$7*(1+Y25))-$P$7+$O$36 -> 81180 | Z29: =($P$7*(1+Z25))-$P$7+$P$36 -> 135065 | AA29: =($P$7*(1+AA25))-$P$7+$P$36 -> 192950 | AB29: =($P$7*(1+AB25))-$P$7+$P$36 -> 250835 | AC29: =($P$7*(1+AC25))-$P$7+$P$36 -> 308720 | AE29: =(($P$7*(1-AE25)))-$P$7+$O$36 -> -73180 | AF29: =(($P$7*(1-AF25)))-$P$7+$P$36 -> -135065 | AG29: =(($P$7*(1-AG25)))-$P$7+$P$36 -> -192950 | AH29: =(($P$7*(1-AH25)))-$P$7+$P$36 -> -250835 | AI29: =(($P$7*(1-AI25)))-$P$7+$P$36 -> -308720
A30: + Proceeds from Added Term Debt | B30: ='Annual Cash Flow Projection'!C30 -> 168962 | D30: 0 | E30: 0 | F30: 0 | G30: 0 | H30: 0 | I30: 0 | J30: 0 | K30: 0 | L30: 0 | M30: 0 | N30: 0 | O30: 1250 | P30: 1250 | Q30: 0.007398113185 | S30: 14080.16667 | U30: 0 | V30: 1250
A31: - Repayment of Term Debt | B31: ='Annual Cash Flow Projection'!C31 -> -62481 | D31: 14000 | E31: 0 | F31: 0 | G31: 13500 | H31: 0 | I31: 0 | J31: 12000 | K31: 0 | L31: 0 | M31: 15000 | N31: 0 | O31: 1000 | P31: 55500 | Q31: -0.8882700341 | S31: -5206.75 | U31: 0 | V31: 15000 | Y31: Increase in operating expenses | AE31: Decrease in operating expenses
A32: + Net Proceeds from Personal Loans | B32: ='Annual Cash Flow Projection'!C32 -> 806 | D32: 0 | E32: 0 | F32: 0 | G32: 0 | H32: 0 | I32: 0 | J32: 0 | K32: 0 | L32: 0 | M32: 0 | N32: 0 | O32: 0 | P32: 0 | Q32: 0 | S32: 67.16666667 | U32: 0 | V32: 0 | Y32: =Y$1 -> 0.1 | Z32: =Z$1 -> 0.175 | AA32: =AA$1 -> 0.25 | AB32: =AB$1 -> 0.325 | AC32: =AC$1 -> 0.4 | AE32: =Y$1 -> 0.1 | AF32: =Z$1 -> 0.175 | AG32: =AA$1 -> 0.25 | AH32: =AB$1 -> 0.325 | AI32: =AC$1 -> 0.4
A33: Net Cash Provided by Financing Activities | B33: ='Annual Cash Flow Projection'!C33 -> 121808.4009 | D33: =SUM(D28:D30)+D32-D31 -> -14000 | E33: =SUM(E28:E30)+E32-E31 -> 0 | F33: 0 | G33: -13500 | H33: 0 | I33: 0 | J33: -12000 | K33: 0 | L33: 0 | M33: -15000 | N33: 8700 | O33: 250 | P33: -45550 | Q33: -0.3739479351 | S33: 10150.70008 | U33: -15000 | V33: 8700 | X33: Ending Liquidity | Y33: =-(((($P$13+$P$12+$P$10))-(($P$13+$P$12+$P$10)*(1-Y32)))-'Balance Sheet'!$B$48) -> 95750 | Z33: =-(((($P$13+$P$12+$P$10))-(($P$13+$P$12+$P$10)*(1-Z32)))-'Balance Sheet'!$B$48) -> 49287.5 | AA33: =-(((($P$13+$P$12+$P$10))-(($P$13+$P$12+$P$10)*(1-AA32)))-'Balance Sheet'!$B$48) -> 2825 | AB33: =-(((($P$13+$P$12+$P$10))-(($P$13+$P$12+$P$10)*(1-AB32)))-'Balance Sheet'!$B$48) -> -43637.5 | AC33: =-(((($P$13+$P$12+$P$10))-(($P$13+$P$12+$P$10)*(1-AC32)))-'Balance Sheet'!$B$48) -> -90100 | AE33: =(((($P$13+$P$12+$P$10))-(($P$13+$P$12+$P$10)*(1-AE32)))+'Balance Sheet'!$B$48) -> 219650 | AF33: =(((($P$13+$P$12+$P$10))-(($P$13+$P$12+$P$10)*(1-AF32)))+'Balance Sheet'!$B$48) -> 266112.5 | AG33: =(((($P$13+$P$12+$P$10))-(($P$13+$P$12+$P$10)*(1-AG32)))+'Balance Sheet'!$B$48) -> 312575 | AH33: =(((($P$13+$P$12+$P$10))-(($P$13+$P$12+$P$10)*(1-AH32)))+'Balance Sheet'!$B$48) -> 359037.5 | AI33: =(((($P$13+$P$12+$P$10))-(($P$13+$P$12+$P$10)*(1-AI32)))+'Balance Sheet'!$B$48) -> 405500
A34: Cash Provided by Cash Accounts
A35: Cash at Beginning of Year / Month | B35: ='Annual Cash Flow Projection'!C35 -> 27783.31356 | D35: ='Annual Cash Flow Projection'!G36 -> -66884 | E35: =D36 -> -48 | F35: 14000 | G35: 25000 | H35: 8900 | I35: 14200 | J35: 26000 | K35: 24500 | L35: 24000 | M35: 30436 | N35: 20330 | O35: 19431 | S35: =+B35/12 -> 2315.27613 | U35: -66884 | V35: 30436 | Y35: Increase in operating revenue | AE35: Decrease in operating revenue
A36: - Cash at End of Year / Month | B36: ='Annual Cash Flow Projection'!C36 -> 9000 | D36: -48 | E36: 14000 | F36: 25000 | G36: 8900 | H36: 14200 | I36: 26000 | J36: 24500 | K36: 24000 | L36: 30436 | M36: 20330 | N36: 19431 | O36: 4000 | S36: =+B36/12 -> 750 | U36: -48 | V36: 30436 | X36: Ending Liquidity | Y36: =(($P$7*(1+Y32))-$P$7+'Balance Sheet'!$B$48) -> 234880 | Z36: =(($P$7*(1+Z32))-$P$7+'Balance Sheet'!$B$48) -> 292765 | AA36: =(($P$7*(1+AA32))-$P$7+'Balance Sheet'!$B$48) -> 350650 | AB36: =(($P$7*(1+AB32))-$P$7+'Balance Sheet'!$B$48) -> 408535 | AC36: =(($P$7*(1+AC32))-$P$7+'Balance Sheet'!$B$48) -> 466420 | AE36: =((($P$7*(1-AE32)))-$P$7+'Balance Sheet'!$B$48) -> 80520 | AF36: =((($P$7*(1-AF32)))-$P$7+'Balance Sheet'!$B$48) -> 22635 | AG36: =((($P$7*(1-AG32)))-$P$7+'Balance Sheet'!$B$48) -> -35250 | AH36: =((($P$7*(1-AH32)))-$P$7+'Balance Sheet'!$B$48) -> -93135 | AI36: =((($P$7*(1-AI32)))-$P$7+'Balance Sheet'!$B$48) -> -151020
A37: Net Cash Provided by Cash Accounts | B37: ='Annual Cash Flow Projection'!C37 -> 18783.31356 | D37: =D35-D36 -> -66836 | E37: =E35-E36 -> -14048 | F37: -11000 | G37: 16100 | H37: -5300 | I37: -11800 | J37: 1500 | K37: 500 | L37: -6436 | M37: 10106 | N37: 899 | O37: 15431 | S37: =+B37/12 -> 1565.27613 | U37: -66836 | V37: 16100
A38: Cash Flow Imbalance | B38: ='Annual Cash Flow Projection'!C38 -> 80170.6014 | D38: =D16+D26+D33+D37 -> -33094 | E38: =E16+E26+E33+E37 -> -148 | F38: =F16+F26+F33+F37 -> -650 | G38: 5200 | H38: 200 | I38: -234 | J38: 67 | K38: 67 | L38: -36 | M38: 6 | N38: -1 | O38: 7831 | S38: =+B38/12 -> 6680.88345 | U38: -33094 | V38: 7831
A39: Cash Flow Imbalance % Cash Income | B39: ='Annual Cash Flow Projection'!C39 -> 0.1147653189 | D39: =D38/D7 -> -0.5091384615 | E39: -0.002176470588 | F39: -0.009745127436 | G39: 0.08 | H39: 0.003048780488 | I39: -0.003627906977 | J39: 0.001080645161 | K39: 0.001116666667 | L39: -0.0005625 | M39: 9.523809524e-05 | N39: -1.5625e-05 | O39: 0.122359375 | S39: =+B39/12 -> 0.009563776579 | U39: -0.5091384615 | V39: 0.122359375
A40: Cash Flow Coverage Ratio, Farm Only | B40: ='Annual Cash Flow Projection'!C40 -> -1.090190362 | D40: =(D7+D18+D28+D29+D30+D35)/(D28-D9+D10+D11+D12+D13+D15+D20+D21+D22+D23+D24+D31) -> -0.02830613901 | E40: 1.256044362 | F40: 1.432120674 | G40: 1.325478645 | H40: 1.344765343 | I40: 1.343003413 | J40: 1.273516643 | K40: 1.506238859 | L40: 1.527777778 | M40: 1.278194254 | N40: 1.286721992 | O40: 1.16129516
A41: Cash Flow Coverage Ratio, Farm + Personal | B41: ='Annual Cash Flow Projection'!C41 -> -1.113337619 | D41: =(D7+D18+D28+D29+D30+D35+D32+D19+D8)/(D28-D9+D10+D11+D12+D13+D15+D20+D21+D22+D23+D24+D31+D25+D14) -> 0.5349013444 | E41: 1.256044362 | F41: 1.432120674 | G41: 1.185770751 | H41: 1.239600666 | I41: 1.439692833 | J41: 1.35552822 | K41: 1.364099849 | L41: 1.527777778 | M41: 1.278194254 | N41: 1.130376671 | O41: 1.114475085
A43: CWT Milk Produced this Month | D43: 1833 | E43: 2100 | F43: 1921 | G43: 2200 | H43: 2570 | I43: 2800 | J43: 3200 | K43: 2700 | L43: 2540 | M43: 2320 | N43: 2400 | O43: 2000 | P43: =SUM(D43:O43) -> 28584 | Q43: =P43/'Input Form'!F49 -> 1.299272727 | S43: ='Input Form'!F49/12 -> 1833.333333 | T43: CWT | U43: =MIN(D43:O43) -> 1833 | V43: =MAX(D43:O43) -> 3200
A44: Milk Price This Month | D44: 13.1 | E44: 14.5 | F44: 14.75 | G44: 12.5 | H44: 12.4 | I44: 11.9 | J44: 12.1 | K44: 13 | L44: 13.21 | M44: 13.8 | N44: 14.5 | O44: 18 | P44: =AVERAGE(D44:O44) -> 13.64666667 | Q44: =P44/B46 -> 1.05713615 | U44: =MIN(D44:O44) -> 11.9 | V44: =MAX(D44:O44) -> 18
A45: Milk Price/CWT need to Break Even
A46: On Projected Ending Cash Balance | B46: =IF(B36<1, 'Annual Cash Flow Projection'!$E$43/'Input Form'!F49,'Annual Cash Flow Projection'!E44/'Input Form'!F49) -> 12.90909091 | D46: =-IF(D36<1,(D36-(D43*D44))/D43,-((D43*D44)-D36)/D43) -> 13.12618658 | E46: 7.833333333 | F46: 1.73594482 | G46: 8.454545455 | H46: 6.874708171 | I46: 2.614285714 | J46: 4.44375 | K46: 4.111111111 | L46: 1.227322835 | M46: 5.037068966 | N46: 6.40375 | O46: 16 | U46: =MIN(D46:P46) -> 1.227322835 | V46: =MAX(D46:P46) -> 16
A47: CWT Needed Breakeven at Received Price | D47: =-IF(D36<1,(D36-(D43*D44))/D44,-((D43*D44)-D36)/D44) -> 1836.664122 | E47: 1134.482759 | F47: 226.0847458 | G47: 1488 | H47: 1424.83871 | I47: 615.1260504 | J47: 1175.206612 | K47: 853.8461538 | L47: 235.987888 | M47: 846.8115942 | N47: 1059.931034 | O47: 1777.777778 | U47: =MIN(D47:Q47) -> 226.0847458 | V47: =MAX(D47:Q47) -> 1836.664122
A48: Actual Diff Milk Price Received and Needed | B48: =$O$46-$O$44 -> -2
A49: Year End

Sheet DuPont
A2: DuPont Financial Analysis Easy Calculator | L2: DuPont Financial Analysis Output:
P3: DuPont Analysis Table- | S3: =F9 -> 2011
A4: =FarmID -> Farm1 | H4: AgFA Data | L4: Calculated output: | N4: (Green Cells)
A5: ='Input Form'!F8 -> 2011 | H5: or Other Comparables | R5: My Farm | S5: AgFA Comparables
H6: (Yellow cells) | N6: 1. Operating profit margin ratio (OPMR) | R6: =F12 -> 0.08934915917 | S6: -0.143
A7: INPUT : My Financial analysis values: | F7: (Blue Cells) | H7: INPUT: | N7: 2. Asset turnover ratio (ATO) | R7: =F11 -> 0.3187065093 | S7: 0.299
F8: My Farm | H8: Comparable | K8: Basic DuPont Analysis: | N8: 3. ROROA (1*2) | R8: =F10 -> 0.04029764972 | S8: -0.0427
A9: 1. Year of analysis= | F9: =A5 -> 2011 | H9: =F9 -> 2011 | K9: Extended DuPont output: | N9: 4. Interest expense to avg. farm assets | R9: =F23 -> 0.02498643731 | S9: =H23 -> 0.01621322852
A10: 2. Rate of Return on Assets (ROROA)= | F10: ='Farm Earnings'!B86 -> 0.04029764972 | N10: 5. Equity multiplier | R10: =F24 -> 1.451924644 | S10: =H24 -> 1.455708609
A11: 3. Asset Turn Over ratio (ATO)= | F11: ='Farm Earnings'!B90 -> 0.3187065093 | N11: 6. ROROE (3-4) * 5 | R11: ='Balance Sheet'!B46 -> 0.04968383009 | S11: -0.0845
A12: 4. Operating Profit Margin (OPM)= | F12: ='Farm Earnings'!B88 -> 0.08934915917
A13: 5. Total Interest Expense for the Year= | F13: ='Farm Earnings'!E48+'Farm Earnings'!E47 -> 39399.35844 | H13: 25080
A14: 6. Beginning Total Asset value= | F14: ='Balance Sheet'!J23 -> 1844460.559 | H14: 1587739
A15: 7. Ending Total Asset value= | F15: ='Balance Sheet'!B23 -> 1309199 | H15: 1506031
A16: 8. Total Equity value, year end= | F16: ='Balance Sheet'!B43 -> 901699 | H16: 1034569
A18: Intermediate calculated OUTPUT: | D18: (Tan cells)
A19: 1. Average Farm Asset Value for the year= | F19: =+(F15+F14)/2 -> 1576829.78 | H19: =(H15+H14)/2 -> 1546885
A20: 2. Leverage Multiplier= | F20: =(F15)/(F16) -> 1.451924644 | H20: =(H15)/(H16) -> 1.455708609
A22: DuPont Input Calculations: | C22: (Maroon cells)
A23: #1. Total interest expense:average farm assets= | F23: =F13/F19 -> 0.02498643731 | H23: =H13/H19 -> 0.01621322852
A24: #2. Equity Multiplier= | F24: =F15/F16 -> 1.451924644 | H24: =H15/H16 -> 1.455708609

Sheet Annual CF Projection Summary
B2: Annual Cash Flow Projection Narrative Summary
B3: =FarmID -> Farm1
B4: You have utilized your farm business financial information for | H4: ='Annual Cash Flow Projection'!F6 -> 2009 | I4: and | J4: ='Annual Cash Flow Projection'!G6 -> 2010 | K4: to project your | M4: ='Annual Cash Flow Projection'!C6 -> 2011 | N4: Cash Flow Statement. Based on your prediction
A5: of input costs and | C5: prices you expect to receive for the products you sell during | I5: ='Annual Cash Flow Projection'!C6 -> 2011 | J5: the following year end cash Flow is predicted:
H7: ='Annual Cash Flow Projection'!A34 -> Cash Provided by Cash Accounts
H8: ='Annual Cash Flow Projection'!A35 -> Cash at Beginning of Year | M8: ='Annual Cash Flow Projection'!C35 -> 27783.31356
H9: ='Annual Cash Flow Projection'!A36 -> - Cash at End of Year | M9: ='Annual Cash Flow Projection'!C36 -> 9000
H10: ='Annual Cash Flow Projection'!A37 -> Net Cash Provided by Cash Accounts | M10: ='Annual Cash Flow Projection'!C37 -> 18783.31356
H11: ='Annual Cash Flow Projection'!A38 -> Cash Flow Imbalance | M11: ='Annual Cash Flow Projection'!C38 -> 80170.6014
H12: ='Annual Cash Flow Projection'!A39 -> Cash Flow Imbalance % Cash Income | M12: ='Annual Cash Flow Projection'!C39 -> 0.1147653189
H13: ='Annual Cash Flow Projection'!A40 -> Cash Flow Coverage Ratio, Farm Only | M13: ='Annual Cash Flow Projection'!C40 -> -1.090190362
H14: ='Annual Cash Flow Projection'!A41 -> Cash Flow Coverage Ratio, Farm + Personal | M14: ='Annual Cash Flow Projection'!C41 -> -1.113337619
H15: ='Annual Cash Flow Projection'!A43 -> Average Milk Price Needed to Break Even on Cash Flow | M15: ='Annual Cash Flow Projection'!A44 -> 12.90909091 | N15: at a marketing level of | P15: ='Input Form'!F49 -> 22000 | Q15: Cwt./year
H16: Alternatively, a reduction/increase in Total Cash Expense of | M16: =('Annual Cash Flow Projection'!T10+'Annual Cash Flow Projection'!Z10)/'Annual Cash Flow Projection'!Z11 -> -0.01510574262 | N16: is needed to Break Even on Cash Flow.
A19: Given your expectation that input prices may vary from your prediction by | H19: ='Input Form'!I7 -> 10 | I19: to | J19: ='Input Form'!I8 -> 40 | K19: % the Sensitivity Analysis is calculated based on cost variances of | P19: ='Annual Cash Flow Projection'!N9 -> 0.1 | Q19: ='Annual Cash Flow Projection'!P9 -> 0.25 | R19: and
A20: ='Annual Cash Flow Projection'!R9 -> 0.4 | B20: from your base prediction. Your business's Cash Flow situation may change based on this range of potential variance by the following amounts;
G22: ='Annual Cash Flow Projection'!M8 -> Cash Flow
I23: ='Annual Cash Flow Projection'!N8 -> Increase in operating expenses | M23: ='Annual Cash Flow Projection'!T8 -> Decrease in operating expenses
I24: =P19 -> 0.1 | J24: =Q19 -> 0.25 | K24: =A20 -> 0.4 | M24: =I24 -> 0.1 | N24: =J24 -> 0.25 | O24: =K24 -> 0.4
G25: ='Annual Cash Flow Projection'!M10 -> Cash at end of year | I25: ='Annual Cash Flow Projection'!N10 -> -50579.99038 | J25: ='Annual Cash Flow Projection'!P10 -> -139949.9759 | K25: ='Annual Cash Flow Projection'!R10 -> -229319.9615 | M25: ='Annual Cash Flow Projection'!T10 -> 68579.99038 | N25: ='Annual Cash Flow Projection'!V10 -> 157949.9759 | O25: ='Annual Cash Flow Projection'!X10 -> 247319.9615
I27: ='Annual Cash Flow Projection'!N12 -> Increase in operating revenue | M27: ='Annual Cash Flow Projection'!T12 -> Decrease in operating revenue
I28: =I24 -> 0.1 | J28: =J24 -> 0.25 | K28: =K24 -> 0.4 | M28: =I28 -> 0.1 | N28: =J28 -> 0.25 | O28: =K28 -> 0.4
G29: ='Annual Cash Flow Projection'!M13 -> Cash at end of year | I29: ='Annual Cash Flow Projection'!N13 -> 78856.12216 | J29: ='Annual Cash Flow Projection'!P13 -> 183640.3054 | K29: ='Annual Cash Flow Projection'!R13 -> 288424.4887 | M29: ='Annual Cash Flow Projection'!T13 -> -60856.12216 | N29: ='Annual Cash Flow Projection'!V13 -> -165640.3054 | O29: ='Annual Cash Flow Projection'!X13 -> -270424.4887
G31: ='Annual Cash Flow Projection'!M20 -> Working Capital | I31: ='Annual Cash Flow Projection'!N20 -> Increase in operating expenses | M31: ='Annual Cash Flow Projection'!T20 -> Decrease in operating expenses
I32: =I28 -> 0.1 | J32: =J28 -> 0.25 | K32: =K28 -> 0.4 | M32: =M28 -> 0.1 | N32: =N28 -> 0.25 | O32: =O28 -> 0.4
G33: ='Annual Cash Flow Projection'!M22 -> Ending Liquidity | I33: ='Annual Cash Flow Projection'!N22 -> 98120.00962 | J33: ='Annual Cash Flow Projection'!P22 -> 8750.02406 | K33: ='Annual Cash Flow Projection'!R22 -> -80619.9615 | M33: ='Annual Cash Flow Projection'!T22 -> 217279.9904 | N33: ='Annual Cash Flow Projection'!V22 -> 306649.9759 | O33: ='Annual Cash Flow Projection'!X22 -> 396019.9615
I35: ='Annual Cash Flow Projection'!N24 -> Increase in operating revenue | M35: ='Annual Cash Flow Projection'!T24 -> Decrease in operating revenue
I36: =I32 -> 0.1 | J36: =J32 -> 0.25 | K36: =K32 -> 0.4 | M36: =M32 -> 0.1 | N36: =N32 -> 0.25 | O36: =O32 -> 0.4
G37: ='Annual Cash Flow Projection'!M25 -> Ending Liquidity | I37: ='Annual Cash Flow Projection'!N25 -> 227556.1222 | J37: ='Annual Cash Flow Projection'!P25 -> 332340.3054 | K37: ='Annual Cash Flow Projection'!R25 -> 437124.4887 | M37: ='Annual Cash Flow Projection'!T25 -> 87843.87784 | N37: ='Annual Cash Flow Projection'!V25 -> -16940.30541 | O37: ='Annual Cash Flow Projection'!X25 -> -121724.4887
D39: The effect of rising or falling interest rates will change your Ending Cash Balance and Liquidity as follows;
F41: "Other" Loan Interest | I41: ='Annual Cash Flow Projection'!N15 -> Increase in Interest expenses | M41: ='Annual Cash Flow Projection'!T15 -> Decrease in Interest expenses
I42: =I36 -> 0.1 | J42: =J36 -> 0.25 | K42: =K36 -> 0.4 | M42: =M36 -> 0.1 | N42: =N36 -> 0.25 | O42: =O36 -> 0.4
F43: ='Annual Cash Flow Projection'!M17 -> Cash at end of year | I43: ='Annual Cash Flow Projection'!N17 -> 6545.447015 | J43: ='Annual Cash Flow Projection'!P17 -> 2863.617538 | K43: ='Annual Cash Flow Projection'!R17 -> -818.2119385 | M43: ='Annual Cash Flow Projection'!T17 -> 11454.55298 | N43: ='Annual Cash Flow Projection'!V17 -> 15136.38246 | O43: ='Annual Cash Flow Projection'!X17 -> 18818.21194
F44: Ending Liquidity | I44: ='Annual Cash Flow Projection'!N18 -> 155245.447 | J44: ='Annual Cash Flow Projection'!P18 -> 151563.6175 | K44: ='Annual Cash Flow Projection'!R18 -> 147881.7881 | M44: ='Annual Cash Flow Projection'!T18 -> 160154.553 | N44: ='Annual Cash Flow Projection'!V18 -> 163836.3825 | O44: ='Annual Cash Flow Projection'!X18 -> 167518.2119
C62: Net Cash Income
B67: Your NCI | C67: in | D67: ='Farm Earnings'!D8 -> 2009 | E67: was | F67: ='Farm Earnings'!D23-'Farm Earnings'!D69 -> 120405.3875 | G67: compared to an average AgFA farm in your herd size of | L67: ='Input Form'!D46 -> 100 | M67: cows of | N67: XXXX | O67: .
B68: You | C68: are/are not | E68: competitive with the average AgFA herd summarized in your herd size category.
B70: Alternatively, your projected | E70: ='Farm Earnings'!B8 -> 2011 | F70: NCI is | G70: ='Farm Earnings'!B23-'Farm Earnings'!B69 -> 58396.03565 | H70: .
B72: If you are not comfortable with your business’s present NCI performance, options to affect this measure include;
B73: 1. improve profitability by lowering costs and\or,
B74: 2. improving profitability through higher productivity and/or better marketing,
B75: 3 expand, or
B76: 4. decrease the number of partners.
B83: Your WC with deferred taxes on the sale of assets not considered, in
B84: ='Balance Sheet'!I6 -> 2010 | C84: was | D84: ='Balance Sheet'!J48 -> 150576.2687 | E84: compared to the average AgFA in you herd size category of | J84: ='Input Form'!D46 -> 100 | K84: cows of | L84: XXXX | M84: .
B85: You | C85: are/are not | E85: competitive with the average AgFA herd summarized in your herd size category.
B87: The | C87: =B84 -> 2010 | D87: AgFA database WC range for your herd size was | I87: XXXX | J87: .
B89: Your | C89: =C87 -> 2010 | D89: Working Capital: Gross Income was | H89: ='Farm Earnings'!D83 -> 0.1986745928 | I89: and your Working Capital: Operating Expense was | M89: ='Farm Earnings'!D84 -> 0.2193559976 | N89: .
B91: Your projected WC for | E91: ='Balance Sheet'!B6 -> 2011 | F91: is | H91: ='Balance Sheet'!B48 -> 157700 | I91: .
B92: Your projected Working Capital: Gross Income for | H92: =E91 -> 2011 | I92: is | J92: ='Farm Earnings'!B83 -> 0.2217469384 | K92: .
B93: Your projected Working Capital: Operating Expense for | H93: =H92 -> 2011 | I93: is | J93: ='Farm Earnings'!B84 -> 0.2469961666 | K93: .
B104: Your CR in | D104: ='Balance Sheet'!I6 -> 2010 | E104: was | F104: ='Balance Sheet'!J47 -> 3.823407143 | G104: compared to the average AgFA farm in your herd size of | L104: ='Input Form'!D46 -> 100 | M104: cows of | N104: XXXX | O104: .
B105: You | C105: are/are not | E105: competitive with the average AgFA herd summarized in your herd size category.
B107: The | C107: =D104 -> 2010 | D107: AgFA database CR range for your herd size was | H107: XXXX | I107: .
B109: Your projected CR for | E109: ='Balance Sheet'!B6 -> 2011 | F109: is | G109: ='Balance Sheet'!B47 -> 6.170491803 | H109: .

Sheet Current CF Summary
B2: Current Year Cash Flow Narrative Summary
B3: =FarmID -> Farm1
B4: Your current year Cash Flow summary for | G4: ='Input Form'!F8 -> 2011 | H4: follows;
I7: ='Curent Monthly Cash Flow '!A34 -> Cash Provided by Cash Accounts
I8: Cash at beginning of year | M8: ='Curent Monthly Cash Flow '!O35 -> 19431
I9: -Cash at End of year | M9: ='Curent Monthly Cash Flow '!O36 -> 4000
I10: ='Curent Monthly Cash Flow '!A37 -> Net Cash Provided by Cash Accounts | M10: ='Curent Monthly Cash Flow '!O37 -> 15431
I11: ='Curent Monthly Cash Flow '!A38 -> Cash Flow Imbalance | M11: ='Curent Monthly Cash Flow '!O38 -> 7831
I12: ='Curent Monthly Cash Flow '!A39 -> Cash Flow Imbalance % Cash Income | M12: ='Curent Monthly Cash Flow '!O39 -> 0.122359375
I13: ='Curent Monthly Cash Flow '!A40 -> Cash Flow Coverage Ratio, Farm Only | M13: ='Curent Monthly Cash Flow '!O40 -> 1.16129516
I14: ='Curent Monthly Cash Flow '!A41 -> Cash Flow Coverage Ratio, Farm + Personal | M14: ='Curent Monthly Cash Flow '!O41 -> 1.114475085
I16: CWT Milk produced this year | M16: ='Curent Monthly Cash Flow '!P43 -> 28584
I17: Avg. Annual Milk Price/CWT. | M17: ='Curent Monthly Cash Flow '!P44 -> 13.64666667
I18: ='Curent Monthly Cash Flow '!A45 -> Milk Price/CWT need to Break Even
I19: ='Curent Monthly Cash Flow '!A46 -> On Projected Ending Cash Balance | M19: ='Curent Monthly Cash Flow '!O46 -> 16 | N19: for the month of December.
I20: ='Curent Monthly Cash Flow '!A47 -> CWT Needed Breakeven at Received Price | M20: ='Curent Monthly Cash Flow '!O47 -> 1777.777778 | N20: for the month of December.
I21: ='Curent Monthly Cash Flow '!A48 -> Actual Diff Milk Price Received and Needed | M21: ='Curent Monthly Cash Flow '!B48 -> -2 | N21: for the month of December.
I22: Alternatively, a reduction/increase in Total Cash Expense of | M22: =('Curent Monthly Cash Flow '!AE26+'Curent Monthly Cash Flow '!AK26)/'Curent Monthly Cash Flow '!AK27 -> 0.006456820016 | N22: is needed to Break Even on Cash Flow.
A24: A change in prices paid for production inputs and/or in prices received for products sold during | J24: =G4 -> 2011 | K24: would have affected year-end Cash Flow and Working Capital levels by the following amounts;
G26: ='Curent Monthly Cash Flow '!X8 -> Cash Flow
I27: ='Curent Monthly Cash Flow '!Y6 -> 2011
I28: ='Curent Monthly Cash Flow '!Y8 -> Increase in operating expenses | M28: ='Curent Monthly Cash Flow '!AE8 -> Decrease in operating expenses
I29: ='Curent Monthly Cash Flow '!Y1 -> 0.1 | J29: ='Curent Monthly Cash Flow '!AA9 -> 0.25 | K29: ='Curent Monthly Cash Flow '!AC9 -> 0.4 | M29: =I29 -> 0.1 | N29: =J29 -> 0.25 | O29: =K29 -> 0.4
G30: ='Curent Monthly Cash Flow '!X10 -> Cash at end of year | I30: ='Curent Monthly Cash Flow '!Y10 -> -50579.99038 | J30: ='Curent Monthly Cash Flow '!$AA$26 -> -150875 | K30: ='Curent Monthly Cash Flow '!$AC$26 -> -243800 | M30: ='Curent Monthly Cash Flow '!AE10 -> 68579.99038 | N30: ='Curent Monthly Cash Flow '!$AG$26 -> 158875 | O30: ='Curent Monthly Cash Flow '!$AI$26 -> 251800
I32: ='Curent Monthly Cash Flow '!Y12 -> Increase in operating revenue | M32: ='Curent Monthly Cash Flow '!AE28 -> Decrease in operating revenue
G33: ='Curent Monthly Cash Flow '!X13 -> Cash at end of year | I33: ='Curent Monthly Cash Flow '!Y13 -> 78856.12216 | J33: ='Curent Monthly Cash Flow '!$AA$29 -> 192950 | K33: ='Curent Monthly Cash Flow '!$AC$29 -> 308720 | M33: ='Curent Monthly Cash Flow '!AE13 -> -60856.12216 | N33: ='Curent Monthly Cash Flow '!$AG$29 -> -192950 | O33: ='Curent Monthly Cash Flow '!$AI$29 -> -308720
G35: ='Curent Monthly Cash Flow '!X15 -> Working Capital | I35: ='Curent Monthly Cash Flow '!Y15 -> Increase in operating expenses | M35: ='Curent Monthly Cash Flow '!AE31 -> Decrease in operating expenses
G36: ='Curent Monthly Cash Flow '!X17 -> Ending Liquidity | I36: ='Curent Monthly Cash Flow '!Y33 -> 95750 | J36: ='Curent Monthly Cash Flow '!$AA$33 -> 2825 | K36: ='Curent Monthly Cash Flow '!$AC$33 -> -90100 | M36: ='Curent Monthly Cash Flow '!AE33 -> 219650 | N36: ='Curent Monthly Cash Flow '!$AG$33 -> 312575 | O36: ='Curent Monthly Cash Flow '!$AI$33 -> 405500
G38: ='Curent Monthly Cash Flow '!X20 -> Ending Liquidity | I38: ='Curent Monthly Cash Flow '!Y19 -> Increase in operating revenue | M38: ='Curent Monthly Cash Flow '!AE35 -> Decrease in operating revenue
I39: ='Curent Monthly Cash Flow '!Y36 -> 234880 | J39: ='Curent Monthly Cash Flow '!$AA$36 -> 350650 | K39: ='Curent Monthly Cash Flow '!$AC$36 -> 466420 | M39: ='Curent Monthly Cash Flow '!AE36 -> 80520 | N39: ='Curent Monthly Cash Flow '!$AG$36 -> -35250 | O39: ='Curent Monthly Cash Flow '!$AI$36 -> -151020
C57: Net Cash Income
B62: Your NCI | C62: in | D62: ='Curent Monthly Cash Flow '!B6 -> 2011 | E62: was | F62: ='Curent Monthly Cash Flow '!P16 -> 114442 | G62: compared to an average AgFA farm in your herd size of | L62: ='Input Form'!D46 -> 100 | M62: cows of | N62: XXXX | O62: .
B63: You | C63: are/are not | E63: competitive with the average AgFA herd summarized in your herd size category.
B65: Alternatively, your projected | E65: ='Farm Earnings'!B8 -> 2011 | F65: NCI was | G65: ='Curent Monthly Cash Flow '!B16 -> 76951.88695 | H65: .
B67: If you are not comfortable with your business’s present NCI performance, options to affect this measure include;
B68: 1. improve profitability by lowering costs and\or,
B69: 2. improving profitability through higher productivity and/or better marketing,
B70: 3 expand, or
B71: 4. decrease the number of partners.
B73: Your Net Available Cash, year end in
B74: ='Curent Monthly Cash Flow '!B6 -> 2011 | C74: was | D74: ='Curent Monthly Cash Flow '!O36 -> 4000
B76: The average milk price earned by your farm in | G76: ='Curent Monthly Cash Flow '!B6 -> 2011 | H76: was | I76: ='Curent Monthly Cash Flow '!P44 -> 13.64666667 | J76: compared to the average AgFA herd in you herd size range of | O76: ='Input Form'!D46 -> 100 | P76: cows of | Q76: XXXX | R76: .
B78: Your average Cash Flow Coverage Ratio, Farm Only of | G78: =M13 -> 1.16129516 | H78: compared to the average AgFA farm at your herd size of | M78: =L62 -> 100 | N78: cows was | O78: XXXX | P78: .
B79: You | C79: are/are not | E79: competitive with the average AgFA herd summarized in your herd size category.
B81: Your average Cash Flow Coverage Ratio, Farm plus Personnel of | H81: =M14 -> 1.114475085 | I81: compared to the average AgFA farm at your herd size of | M81: =L62 -> 100 | N81: cows was | O81: XXXX | P81: .
B82: You | C82: are/are not | E82: competitive with the average AgFA herd summarized in your herd size category.
B89: Your Projected WC with deferred taxes on the sale of assets not considered, in | J89: ='Balance Sheet'!B6 -> 2011 | K89: was, | L89: ='Balance Sheet'!B48 -> 157700 | M89: .
B90: Your Actual WC with deferred taxes on the sale of assets not considered, in | I90: ='Curent Monthly Cash Flow '!B6 -> 2011 | J90: was, | K90: =(('Curent Monthly Cash Flow '!O36+SUM('Balance Sheet'!B9:B13)))-'Balance Sheet'!B28 -> 152700 | L90: .
B91: Your WC compares to the average AgFA farm in you herd size category of | H91: ='Input Form'!D46 -> 100 | I91: cows in | J91: ='Curent Monthly Cash Flow '!B6 -> 2011 | K91: cows of | L91: XXXX | M91: .
B93: You | C93: are/are not | E93: competitive with the average AgFA herd summarized in your herd size category.
B95: The | C95: ='Curent Monthly Cash Flow '!B6 -> 2011 | D95: AgFA database WC range for your herd size was | H95: XXXX | I95: .
B97: Your | C97: =C95 -> 2011 | D97: Working Capital: Gross Income was | H97: =K90/('Curent Monthly Cash Flow '!P7+'Curent Monthly Cash Flow '!P18+'Farm Earnings'!B28+'Balance Sheet'!B12) -> 0.1931365929 | I97: and your Working Capital: Operating Expense was | M97: =K90/('Curent Monthly Cash Flow '!P10+'Curent Monthly Cash Flow '!P12+'Curent Monthly Cash Flow '!P13+'Curent Monthly Cash Flow '!P15+'Farm Earnings'!B75+'Balance Sheet'!B25) -> 0.2419091916 | N97: .
B99: If you are not comfortable with your business’s present WC performance, options to affect this measure include;
B100: 1. Increase cash reserves in good years
B101: 2. Improve profitability
B102: 3. Restructure debt
